Workbook

Sheet Heat loss in pipes
A1: Heat Loss in Pipes (heat energy provided by Pipes)
A2: hlp
C6: Pipe | D6: OD" (nominal) | I6: =IF(I12>0,retFtInFrac2((I12/12),hlp_retFtIn_showAccuracy,hlp_retFtIn_fractionsToUse),"") ->  | K6: =IF(AND(K12>0,retSystemeBeingUsed()="US"),retFtInFrac2((K12/12),hlp_retFtIn_showAccuracy,hlp_retFtIn_fractionsToUse),"") ->  | M6: =IF(AND(M12>0,retSystemeBeingUsed()="US"),retFtInFrac2((M12/12),hlp_retFtIn_showAccuracy,hlp_retFtIn_fractionsToUse),"") ->  | O6: =IF(AND(O12>0,retSystemeBeingUsed()="US"),retFtInFrac2((O12/12),hlp_retFtIn_showAccuracy,hlp_retFtIn_fractionsToUse),"") ->  | Q6: =IF(AND(Q12>0,retSystemeBeingUsed()="US"),retFtInFrac2((Q12/12),hlp_retFtIn_showAccuracy,hlp_retFtIn_fractionsToUse),"") ->  | S6: =IF(AND(S12>0,retSystemeBeingUsed()="US"),retFtInFrac2((S12/12),hlp_retFtIn_showAccuracy,hlp_retFtIn_fractionsToUse),"") ->  | U6: =IF(AND(U12>0,retSystemeBeingUsed()="US"),retFtInFrac2((U12/12),hlp_retFtIn_showAccuracy,hlp_retFtIn_fractionsToUse),"") ->  | W6: =IF(AND(W12>0,retSystemeBeingUsed()="US"),retFtInFrac2((W12/12),hlp_retFtIn_showAccuracy,hlp_retFtIn_fractionsToUse),"") ->  | Y6: =IF(AND(Y12>0,retSystemeBeingUsed()="US"),retFtInFrac2((Y12/12),hlp_retFtIn_showAccuracy,hlp_retFtIn_fractionsToUse),"") ->  | AC6: Fractions-to-use | AD6: 32
D7: Material | I7: ?? | K7: =thC_PEX_MatlName -> PEX | M7: =thC_PE_MatlName -> PE, black poly | O7: =thC_PEX_MatlName -> PEX | Q7: =thC_PE_MatlName -> PE, black poly | S7: =thC_PEX_MatlName -> PEX | U7: =thC_PE_MatlName -> PE, black poly | W7: =thC_PEX_MatlName -> PEX | Y7: =thC_PVC_MatlName -> PVC | AC7: Show accuracy | AD7: =(1=1) -> TRUE
D8: Systeme | K8: US | M8: US | O8: US | Q8: US | S8: US | U8: US | W8: US | Y8: US
D9: =CONCATENATE("Cost/",hlp_dat_CostPer_Length,hlp_dat_CostPer_Unit) -> Cost/100' | G9: 100 | H9: ' | K9: 33.58 | M9: 13.38 | O9: 28.5 | Q9: =18.91 -> 18.91 | S9: 48.69 | U9: =74.78/3 +N("price for 300 feet") -> 24.92666667 | W9: 70.3 | Y9: =3.76*10 -> 37.6 | AC9: wt H₂O lbs/ft³ | AD9: =AD10*cnv_kgPerMCuToLbPerftCu -> 62.42796058 | AE9: =retUnitsFor("Wt") -> 
D10: Cost of elbows | K10: 0.33 | M10: 0.44 | O10: 1.51 | Q10: 0.72 | S10: =99.99/50 -> 1.9998 | U10: 0.85 | W10: 3.86 | AC10: wt H₂O kg/m³ | AD10: 1000 | AE10: kg
D11: Nominal ID | J11: =retUnitsFor("subUnit") ->  | K11: 0.375 | L11: =retUnitsFor("subUnit") ->  | M11: =1/2 -> 0.5 | N11: =retUnitsFor("subUnit") ->  | O11: =0.5 -> 0.5 | P11: =retUnitsFor("subUnit") ->  | Q11: =3/4 -> 0.75 | R11: =retUnitsFor("subUnit") ->  | S11: =3/4 -> 0.75 | T11: =retUnitsFor("subUnit") ->  | U11: =1 -> 1 | V11: =retUnitsFor("subUnit") ->  | W11: =1 -> 1 | X11: =retUnitsFor("subUnit") ->  | Y11: =1.25 -> 1.25 | Z11: =retUnitsFor("subUnit") ->  | AC11: wt in use is: | AD11: =IF(retSystemeBeingUsed()="US",hlp_wtWaterInLbsPerFtCu,hlp_wtWaterInKgPerMCu) ->  | AE11: =IF(retSystemeBeingUsed()="US",AE9,AE10) -> 
D12: Actual ID | J12: =retUnitsFor("subUnit") ->  | K12: 0.375 | L12: =retUnitsFor("subUnit") ->  | M12: 0.622 | N12: =retUnitsFor("subUnit") ->  | O12: 0.475 | P12: =retUnitsFor("subUnit") ->  | Q12: 0.824 | R12: =retUnitsFor("subUnit") ->  | S12: 0.671 | T12: =retUnitsFor("subUnit") ->  | U12: 1 | V12: =retUnitsFor("subUnit") ->  | W12: 0.885 | X12: =retUnitsFor("subUnit") ->  | Y12: 1.033 | Z12: =retUnitsFor("subUnit") -> 
D13: Actual OD | J13: =retUnitsFor("subUnit") ->  | K13: 0.5 | L13: =retUnitsFor("subUnit") ->  | M13: 0.682 | N13: =retUnitsFor("subUnit") ->  | O13: 0.5 | P13: =retUnitsFor("subUnit") ->  | Q13: 0.944 | R13: =retUnitsFor("subUnit") ->  | S13: 0.75 | T13: =retUnitsFor("subUnit") ->  | U13: 1.114 | V13: =retUnitsFor("subUnit") ->  | W13: 1 | X13: =retUnitsFor("subUnit") ->  | Y13: 1.315 | Z13: =retUnitsFor("subUnit") -> 
D14: Thickness of wall | I14: =IF(I13>0,I13-I12,"") ->  | J14: =retUnitsFor("subUnit") ->  | K14: =IF(K13>0,K13-K12,"") -> 0.125 | L14: =retUnitsFor("subUnit") ->  | M14: =IF(M13>0,M13-M12,"") -> 0.06 | N14: =retUnitsFor("subUnit") ->  | O14: =IF(O13>0,O13-O12,"") -> 0.025 | P14: =retUnitsFor("subUnit") ->  | Q14: =IF(Q13>0,Q13-Q12,"") -> 0.12 | R14: =retUnitsFor("subUnit") ->  | S14: =IF(S13>0,S13-S12,"") -> 0.079 | T14: =retUnitsFor("subUnit") ->  | U14: =IF(U13>0,U13-U12,"") -> 0.114 | V14: =retUnitsFor("subUnit") ->  | W14: =IF(W13>0,W13-W12,"") -> 0.115 | X14: =retUnitsFor("subUnit") ->  | Y14: =IF(Y13>0,Y13-Y12,"") -> 0.282 | Z14: =retUnitsFor("subUnit") -> 
D15: Wt, per 100' | J15: =retUnitsFor("Wt") ->  | K15: 4.5 | L15: =retUnitsFor("Wt") ->  | M15: 32 | N15: =retUnitsFor("Wt") ->  | O15: 5.315 | P15: =retUnitsFor("Wt") ->  | Q15: 8.1 | R15: =retUnitsFor("Wt") ->  | S15: 10.33 | T15: =retUnitsFor("Wt") ->  | U15: =168/9 + N("The site said 168 lbs per 300 ft. 56 lbs per 100? No way. I think they weighed all 300 and multipled by 3.") -> 18.66666667 | V15: =retUnitsFor("Wt") ->  | W15: 14.774 | X15: =retUnitsFor("Wt") ->  | Y15: =3.214*10 -> 32.14 | Z15: =retUnitsFor("Wt") -> 
D16: Max op temp | J16: =retUnitsFor("deg") ->  | K16: 200 | L16: =retUnitsFor("deg") ->  | M16: 80 | N16: =retUnitsFor("deg") ->  | O16: 200 | P16: =retUnitsFor("deg") ->  | Q16: 73 | R16: =retUnitsFor("deg") ->  | S16: 200 | T16: =retUnitsFor("deg") ->  | U16: 80 | V16: =retUnitsFor("deg") ->  | W16: 200 | X16: =retUnitsFor("deg") ->  | Y16: 140 | Z16: =retUnitsFor("deg") -> 
D17: Max op pressure | J17: =retUnitsFor("pressure") ->  | K17: 160 | L17: =retUnitsFor("pressure") ->  | M17: 125 | N17: =retUnitsFor("pressure") ->  | O17: 160 | P17: =retUnitsFor("pressure") ->  | Q17: 80 | R17: =retUnitsFor("pressure") ->  | S17: 160 | T17: =retUnitsFor("pressure") ->  | U17: 100 | V17: =retUnitsFor("pressure") ->  | W17: 160 | X17: =retUnitsFor("pressure") ->  | Y17: 450 | Z17: =retUnitsFor("pressure") -> 
D19: Bend? (F=fittings) | K19: =1=1 -> TRUE | M19: =1=1 -> TRUE | O19: =1=1 -> TRUE | Q19: =1=1 -> TRUE | S19: =1=1 -> TRUE | U19: =(1=0) -> FALSE | W19: =(1=0) -> FALSE | Y19: =(1=0) -> FALSE
C20: Pipe | D20: =CONCATENATE("Length/",hlp_dat_LenPipeA,hlp_dat_CostPer_Unit) -> Length/100' | G20: 100 | H20: =hlp_dat_CostPer_Unit -> '
D21: =CONCATENATE("Length/",hlp_dat_LenPipeB,hlp_dat_CostPer_Unit) -> Length/200' | G21: 200 | H21: =hlp_dat_CostPer_Unit -> '
D22: =CONCATENATE("Length/",hlp_dat_LenPipeC,hlp_dat_CostPer_Unit) -> Length/300' | G22: 300 | H22: =hlp_dat_CostPer_Unit -> ' | AC22: =CONCATENATE("Wt H₂O in pipe, ") -> Wt H₂O in pipe,
D23: =CONCATENATE("Length/",hlp_dat_LenPipeD,hlp_dat_CostPer_Unit) -> Length/150' | G23: 150 | H23: =hlp_dat_CostPer_Unit -> ' | AC23: ₂₃²³
C25: Pipe | D25: =CONCATENATE("Cost @ ",hlp_dat_LenPipeA,hlp_dat_CostPer_Unit,"") -> Cost @ 100' | I25: =IF(hlp_dat_0p00Pipe_Custom_CostPer100Ft>0,(hlp_dat_0p00Pipe_Custom_CostPer100Ft/hlp_dat_CostPer_Length)*hlp_dat_LenPipeA,"") ->  | K25: =IF(hlp_dat_0p38Pipe_Pex_CostPer100Ft>0,(hlp_dat_0p38Pipe_Pex_CostPer100Ft/hlp_dat_CostPer_Length)*hlp_dat_LenPipeA,"") -> 33.58 | M25: =IF(hlp_dat_0p50Pipe_BlkPoly_CostPer100Ft>0,(hlp_dat_0p50Pipe_BlkPoly_CostPer100Ft/hlp_dat_CostPer_Length)*hlp_dat_LenPipeA,"") -> 13.38 | O25: =IF(hlp_dat_0p50Pipe_Pex_CostPer100Ft>0,(hlp_dat_0p50Pipe_Pex_CostPer100Ft/hlp_dat_CostPer_Length)*hlp_dat_LenPipeA,"") -> 28.5 | Q25: =IF(hlp_dat_0p75Pipe_BlkPoly_CostPer100Ft>0,(hlp_dat_0p75Pipe_BlkPoly_CostPer100Ft/hlp_dat_CostPer_Length)*hlp_dat_LenPipeA,"") -> 18.91 | S25: =IF(hlp_dat_0p75Pipe_Pex_CostPer100Ft>0,(hlp_dat_0p75Pipe_Pex_CostPer100Ft/hlp_dat_CostPer_Length)*hlp_dat_LenPipeA,"") -> 48.69 | U25: =IF(hlp_dat_1p00Pipe_BlkPoly_CostPer100Ft>0,(hlp_dat_1p00Pipe_BlkPoly_CostPer100Ft/hlp_dat_CostPer_Length)*hlp_dat_LenPipeA,"") -> 24.92666667 | W25: =IF(hlp_dat_1p00Pipe_Pex_CostPer100Ft>0,(hlp_dat_1p00Pipe_Pex_CostPer100Ft/hlp_dat_CostPer_Length)*hlp_dat_LenPipeA,"") -> 70.3 | Y25: =IF(hlp_dat_1p00Pipe_PvcSch40_CostPer100Ft>0,(hlp_dat_1p00Pipe_PvcSch40_CostPer100Ft/hlp_dat_CostPer_Length)*hlp_dat_LenPipeA,"") -> 37.6 | AC25: Vol H₂O in pipe
D26: =CONCATENATE("Cost @ ",hlp_dat_LenPipeB,hlp_dat_CostPer_Unit,"") -> Cost @ 200' | I26: =IF(hlp_dat_0p00Pipe_Custom_CostPer100Ft>0,(hlp_dat_0p00Pipe_Custom_CostPer100Ft/hlp_dat_CostPer_Length)*hlp_dat_LenPipeB,"") ->  | K26: =IF(hlp_dat_0p38Pipe_Pex_CostPer100Ft>0,(hlp_dat_0p38Pipe_Pex_CostPer100Ft/hlp_dat_CostPer_Length)*hlp_dat_LenPipeB,"") -> 67.16 | M26: =IF(hlp_dat_0p50Pipe_BlkPoly_CostPer100Ft>0,(hlp_dat_0p50Pipe_BlkPoly_CostPer100Ft/hlp_dat_CostPer_Length)*hlp_dat_LenPipeB,"") -> 26.76 | O26: =IF(hlp_dat_0p50Pipe_Pex_CostPer100Ft>0,(hlp_dat_0p50Pipe_Pex_CostPer100Ft/hlp_dat_CostPer_Length)*hlp_dat_LenPipeB,"") -> 57 | Q26: =IF(hlp_dat_0p75Pipe_BlkPoly_CostPer100Ft>0,(hlp_dat_0p75Pipe_BlkPoly_CostPer100Ft/hlp_dat_CostPer_Length)*hlp_dat_LenPipeB,"") -> 37.82 | S26: =IF(hlp_dat_0p75Pipe_Pex_CostPer100Ft>0,(hlp_dat_0p75Pipe_Pex_CostPer100Ft/hlp_dat_CostPer_Length)*hlp_dat_LenPipeB,"") -> 97.38 | U26: =IF(hlp_dat_1p00Pipe_BlkPoly_CostPer100Ft>0,(hlp_dat_1p00Pipe_BlkPoly_CostPer100Ft/hlp_dat_CostPer_Length)*hlp_dat_LenPipeB,"") -> 49.85333333 | W26: =IF(hlp_dat_1p00Pipe_Pex_CostPer100Ft>0,(hlp_dat_1p00Pipe_Pex_CostPer100Ft/hlp_dat_CostPer_Length)*hlp_dat_LenPipeB,"") -> 140.6 | Y26: =IF(hlp_dat_1p00Pipe_PvcSch40_CostPer100Ft>0,(hlp_dat_1p00Pipe_PvcSch40_CostPer100Ft/hlp_dat_CostPer_Length)*hlp_dat_LenPipeB,"") -> 75.2 | AC26: Flow rate
D27: =CONCATENATE("Cost @ ",hlp_dat_LenPipeC,hlp_dat_CostPer_Unit,"") -> Cost @ 300' | I27: =IF(hlp_dat_0p00Pipe_Custom_CostPer100Ft>0,(hlp_dat_0p00Pipe_Custom_CostPer100Ft/hlp_dat_CostPer_Length)*hlp_dat_LenPipeC,"") ->  | K27: =IF(hlp_dat_0p38Pipe_Pex_CostPer100Ft>0,(hlp_dat_0p38Pipe_Pex_CostPer100Ft/hlp_dat_CostPer_Length)*hlp_dat_LenPipeC,"") -> 100.74 | M27: =IF(hlp_dat_0p50Pipe_BlkPoly_CostPer100Ft>0,(hlp_dat_0p50Pipe_BlkPoly_CostPer100Ft/hlp_dat_CostPer_Length)*hlp_dat_LenPipeC,"") -> 40.14 | O27: =IF(hlp_dat_0p50Pipe_Pex_CostPer100Ft>0,(hlp_dat_0p50Pipe_Pex_CostPer100Ft/hlp_dat_CostPer_Length)*hlp_dat_LenPipeC,"") -> 85.5 | Q27: =IF(hlp_dat_0p75Pipe_BlkPoly_CostPer100Ft>0,(hlp_dat_0p75Pipe_BlkPoly_CostPer100Ft/hlp_dat_CostPer_Length)*hlp_dat_LenPipeC,"") -> 56.73 | S27: =IF(hlp_dat_0p75Pipe_Pex_CostPer100Ft>0,(hlp_dat_0p75Pipe_Pex_CostPer100Ft/hlp_dat_CostPer_Length)*hlp_dat_LenPipeC,"") -> 146.07 | U27: =IF(hlp_dat_1p00Pipe_BlkPoly_CostPer100Ft>0,(hlp_dat_1p00Pipe_BlkPoly_CostPer100Ft/hlp_dat_CostPer_Length)*hlp_dat_LenPipeC,"") -> 74.78 | W27: =IF(hlp_dat_1p00Pipe_Pex_CostPer100Ft>0,(hlp_dat_1p00Pipe_Pex_CostPer100Ft/hlp_dat_CostPer_Length)*hlp_dat_LenPipeC,"") -> 210.9 | Y27: =IF(hlp_dat_1p00Pipe_PvcSch40_CostPer100Ft>0,(hlp_dat_1p00Pipe_PvcSch40_CostPer100Ft/hlp_dat_CostPer_Length)*hlp_dat_LenPipeC,"") -> 112.8
D28: =CONCATENATE("Cost @ ",hlp_dat_LenPipeD,hlp_dat_CostPer_Unit,"") -> Cost @ 150' | I28: =IF(hlp_dat_0p00Pipe_Custom_CostPer100Ft>0,(hlp_dat_0p00Pipe_Custom_CostPer100Ft/hlp_dat_CostPer_Length)*hlp_dat_LenPipeD,"") ->  | K28: =IF(hlp_dat_0p38Pipe_Pex_CostPer100Ft>0,(hlp_dat_0p38Pipe_Pex_CostPer100Ft/hlp_dat_CostPer_Length)*hlp_dat_LenPipeD,"") -> 50.37 | M28: =IF(hlp_dat_0p50Pipe_BlkPoly_CostPer100Ft>0,(hlp_dat_0p50Pipe_BlkPoly_CostPer100Ft/hlp_dat_CostPer_Length)*hlp_dat_LenPipeD,"") -> 20.07 | O28: =IF(hlp_dat_0p50Pipe_Pex_CostPer100Ft>0,(hlp_dat_0p50Pipe_Pex_CostPer100Ft/hlp_dat_CostPer_Length)*hlp_dat_LenPipeD,"") -> 42.75 | Q28: =IF(hlp_dat_0p75Pipe_BlkPoly_CostPer100Ft>0,(hlp_dat_0p75Pipe_BlkPoly_CostPer100Ft/hlp_dat_CostPer_Length)*hlp_dat_LenPipeD,"") -> 28.365 | S28: =IF(hlp_dat_0p75Pipe_Pex_CostPer100Ft>0,(hlp_dat_0p75Pipe_Pex_CostPer100Ft/hlp_dat_CostPer_Length)*hlp_dat_LenPipeD,"") -> 73.035 | U28: =IF(hlp_dat_1p00Pipe_BlkPoly_CostPer100Ft>0,(hlp_dat_1p00Pipe_BlkPoly_CostPer100Ft/hlp_dat_CostPer_Length)*hlp_dat_LenPipeD,"") -> 37.39 | W28: =IF(hlp_dat_1p00Pipe_Pex_CostPer100Ft>0,(hlp_dat_1p00Pipe_Pex_CostPer100Ft/hlp_dat_CostPer_Length)*hlp_dat_LenPipeD,"") -> 105.45 | Y28: =IF(hlp_dat_1p00Pipe_PvcSch40_CostPer100Ft>0,(hlp_dat_1p00Pipe_PvcSch40_CostPer100Ft/hlp_dat_CostPer_Length)*hlp_dat_LenPipeD,"") -> 56.4
C30: Surface | D30: =CONCATENATE("Area ",hlp_dat_LenPipeA,hlp_dat_CostPer_Unit,"") -> Area 100' | I30: =IF(hlp_dat_0p00Pipe_Custom_OD>0,PI()*((hlp_dat_0p00Pipe_Custom_OD*2)*retSystNumLenSubUnitsInUnits())*hlp_dat_LenPipeA,"") ->  | J30: ft2 | K30: =IF(hlp_dat_0p38Pipe_Pex_OD>0,PI()*((hlp_dat_0p38Pipe_Pex_OD*2)*retSystNumLenSubUnitsInUnits())*hlp_dat_LenPipeA,"") ->  | L30: =retUnitsFor("Area") ->  | M30: =IF(hlp_dat_0p50Pipe_BlkPoly_OD>0,PI()*((hlp_dat_0p50Pipe_BlkPoly_OD*2)*retSystNumLenSubUnitsInUnits())*hlp_dat_LenPipeA,"") ->  | N30: =retUnitsFor("Area") ->  | O30: =IF(hlp_dat_0p50Pipe_Pex_OD>0,PI()*((hlp_dat_0p50Pipe_Pex_OD*2)*retSystNumLenSubUnitsInUnits())*hlp_dat_LenPipeA,"") ->  | P30: =retUnitsFor("Area") ->  | Q30: =IF(hlp_dat_0p75Pipe_BlkPoly_OD>0,PI()*((hlp_dat_0p75Pipe_BlkPoly_OD*2)*retSystNumLenSubUnitsInUnits())*hlp_dat_LenPipeA,"") ->  | R30: =retUnitsFor("Area") ->  | S30: =IF(hlp_dat_0p75Pipe_Pex_OD>0,PI()*((hlp_dat_0p75Pipe_Pex_OD*2)*retSystNumLenSubUnitsInUnits())*hlp_dat_LenPipeA,"") ->  | T30: =retUnitsFor("Area") ->  | U30: =IF(hlp_dat_1p00Pipe_BlkPoly_OD>0,PI()*((hlp_dat_1p00Pipe_BlkPoly_OD*2)*retSystNumLenSubUnitsInUnits())*hlp_dat_LenPipeA,"") ->  | V30: =retUnitsFor("Area") ->  | W30: =IF(hlp_dat_1p00Pipe_Pex_OD>0,PI()*((hlp_dat_1p00Pipe_Pex_OD*2)*retSystNumLenSubUnitsInUnits())*hlp_dat_LenPipeA,"") ->  | X30: =retUnitsFor("Area") ->  | Y30: =IF(hlp_dat_1p00Pipe_PvcSch40_OD>0,PI()*((hlp_dat_1p00Pipe_PvcSch40_OD*2)*retSystNumLenSubUnitsInUnits())*hlp_dat_LenPipeA,"") ->  | Z30: =retUnitsFor("Area") -> 
D31: =CONCATENATE("Area ",hlp_dat_LenPipeB,hlp_dat_CostPer_Unit,"") -> Area 200' | I31: =IF(hlp_dat_0p00Pipe_Custom_OD>0,PI()*((hlp_dat_0p00Pipe_Custom_OD*2)*retSystNumLenSubUnitsInUnits())*hlp_dat_LenPipeB,"") ->  | J31: ft2 | K31: =IF(hlp_dat_0p38Pipe_Pex_OD>0,PI()*((hlp_dat_0p38Pipe_Pex_OD*2)*retSystNumLenSubUnitsInUnits())*hlp_dat_LenPipeB,"") ->  | L31: =retUnitsFor("Area") ->  | M31: =IF(hlp_dat_0p50Pipe_BlkPoly_OD>0,PI()*((hlp_dat_0p50Pipe_BlkPoly_OD*2)*retSystNumLenSubUnitsInUnits())*hlp_dat_LenPipeB,"") ->  | N31: =retUnitsFor("Area") ->  | O31: =IF(hlp_dat_0p50Pipe_Pex_OD>0,PI()*((hlp_dat_0p50Pipe_Pex_OD*2)*retSystNumLenSubUnitsInUnits())*hlp_dat_LenPipeB,"") ->  | P31: =retUnitsFor("Area") ->  | Q31: =IF(hlp_dat_0p75Pipe_BlkPoly_OD>0,PI()*((hlp_dat_0p75Pipe_BlkPoly_OD*2)*retSystNumLenSubUnitsInUnits())*hlp_dat_LenPipeB,"") ->  | R31: =retUnitsFor("Area") ->  | S31: =IF(hlp_dat_0p75Pipe_Pex_OD>0,PI()*((hlp_dat_0p75Pipe_Pex_OD*2)*retSystNumLenSubUnitsInUnits())*hlp_dat_LenPipeB,"") ->  | T31: =retUnitsFor("Area") ->  | U31: =IF(hlp_dat_1p00Pipe_BlkPoly_OD>0,PI()*((hlp_dat_1p00Pipe_BlkPoly_OD*2)*retSystNumLenSubUnitsInUnits())*hlp_dat_LenPipeB,"") ->  | V31: =retUnitsFor("Area") ->  | W31: =IF(hlp_dat_1p00Pipe_Pex_OD>0,PI()*((hlp_dat_1p00Pipe_Pex_OD*2)*retSystNumLenSubUnitsInUnits())*hlp_dat_LenPipeB,"") ->  | X31: =retUnitsFor("Area") ->  | Y31: =IF(hlp_dat_1p00Pipe_PvcSch40_OD>0,PI()*((hlp_dat_1p00Pipe_PvcSch40_OD*2)*retSystNumLenSubUnitsInUnits())*hlp_dat_LenPipeB,"") ->  | Z31: =retUnitsFor("Area") -> 
D32: =CONCATENATE("Area ",hlp_dat_LenPipeC,hlp_dat_CostPer_Unit,"") -> Area 300' | I32: =IF(hlp_dat_0p00Pipe_Custom_OD>0,PI()*((hlp_dat_0p00Pipe_Custom_OD*2)*retSystNumLenSubUnitsInUnits())*hlp_dat_LenPipeC,"") ->  | J32: ft2 | K32: =IF(hlp_dat_0p38Pipe_Pex_OD>0,PI()*((hlp_dat_0p38Pipe_Pex_OD*2)*retSystNumLenSubUnitsInUnits())*hlp_dat_LenPipeC,"") ->  | L32: =retUnitsFor("Area") ->  | M32: =IF(hlp_dat_0p50Pipe_BlkPoly_OD>0,PI()*((hlp_dat_0p50Pipe_BlkPoly_OD*2)*retSystNumLenSubUnitsInUnits())*hlp_dat_LenPipeC,"") ->  | N32: =retUnitsFor("Area") ->  | O32: =IF(hlp_dat_0p50Pipe_Pex_OD>0,PI()*((hlp_dat_0p50Pipe_Pex_OD*2)*retSystNumLenSubUnitsInUnits())*hlp_dat_LenPipeC,"") ->  | P32: =retUnitsFor("Area") ->  | Q32: =IF(hlp_dat_0p75Pipe_BlkPoly_OD>0,PI()*((hlp_dat_0p75Pipe_BlkPoly_OD*2)*retSystNumLenSubUnitsInUnits())*hlp_dat_LenPipeC,"") ->  | R32: =retUnitsFor("Area") ->  | S32: =IF(hlp_dat_0p75Pipe_Pex_OD>0,PI()*((hlp_dat_0p75Pipe_Pex_OD*2)*retSystNumLenSubUnitsInUnits())*hlp_dat_LenPipeC,"") ->  | T32: =retUnitsFor("Area") ->  | U32: =IF(hlp_dat_1p00Pipe_BlkPoly_OD>0,PI()*((hlp_dat_1p00Pipe_BlkPoly_OD*2)*retSystNumLenSubUnitsInUnits())*hlp_dat_LenPipeC,"") ->  | V32: =retUnitsFor("Area") ->  | W32: =IF(hlp_dat_1p00Pipe_Pex_OD>0,PI()*((hlp_dat_1p00Pipe_Pex_OD*2)*retSystNumLenSubUnitsInUnits())*hlp_dat_LenPipeC,"") ->  | X32: =retUnitsFor("Area") ->  | Y32: =IF(hlp_dat_1p00Pipe_PvcSch40_OD>0,PI()*((hlp_dat_1p00Pipe_PvcSch40_OD*2)*retSystNumLenSubUnitsInUnits())*hlp_dat_LenPipeC,"") ->  | Z32: =retUnitsFor("Area") -> 
D33: =CONCATENATE("Area ",hlp_dat_LenPipeD,hlp_dat_CostPer_Unit,"") -> Area 150' | I33: =IF(hlp_dat_0p00Pipe_Custom_OD>0,PI()*((hlp_dat_0p00Pipe_Custom_OD*2)*retSystNumLenSubUnitsInUnits())*hlp_dat_LenPipeD,"") ->  | J33: ft2 | K33: =IF(hlp_dat_0p38Pipe_Pex_OD>0,PI()*((hlp_dat_0p38Pipe_Pex_OD*2)*retSystNumLenSubUnitsInUnits())*hlp_dat_LenPipeD,"") ->  | L33: =retUnitsFor("Area") ->  | M33: =IF(hlp_dat_0p50Pipe_BlkPoly_OD>0,PI()*((hlp_dat_0p50Pipe_BlkPoly_OD*2)*retSystNumLenSubUnitsInUnits())*hlp_dat_LenPipeD,"") ->  | N33: =retUnitsFor("Area") ->  | O33: =IF(hlp_dat_0p50Pipe_Pex_OD>0,PI()*((hlp_dat_0p50Pipe_Pex_OD*2)*retSystNumLenSubUnitsInUnits())*hlp_dat_LenPipeD,"") ->  | P33: =retUnitsFor("Area") ->  | Q33: =IF(hlp_dat_0p75Pipe_BlkPoly_OD>0,PI()*((hlp_dat_0p75Pipe_BlkPoly_OD*2)*retSystNumLenSubUnitsInUnits())*hlp_dat_LenPipeD,"") ->  | R33: =retUnitsFor("Area") ->  | S33: =IF(hlp_dat_0p75Pipe_Pex_OD>0,PI()*((hlp_dat_0p75Pipe_Pex_OD*2)*retSystNumLenSubUnitsInUnits())*hlp_dat_LenPipeD,"") ->  | T33: =retUnitsFor("Area") ->  | U33: =IF(hlp_dat_1p00Pipe_BlkPoly_OD>0,PI()*((hlp_dat_1p00Pipe_BlkPoly_OD*2)*retSystNumLenSubUnitsInUnits())*hlp_dat_LenPipeD,"") ->  | V33: =retUnitsFor("Area") ->  | W33: =IF(hlp_dat_1p00Pipe_Pex_OD>0,PI()*((hlp_dat_1p00Pipe_Pex_OD*2)*retSystNumLenSubUnitsInUnits())*hlp_dat_LenPipeD,"") ->  | X33: =retUnitsFor("Area") ->  | Y33: =IF(hlp_dat_1p00Pipe_PvcSch40_OD>0,PI()*((hlp_dat_1p00Pipe_PvcSch40_OD*2)*retSystNumLenSubUnitsInUnits())*hlp_dat_LenPipeD,"") ->  | Z33: =retUnitsFor("Area") -> 
C35: =CONCATENATE("Vol H₂O in pipe") -> Vol H₂O in pipe | D35: =CONCATENATE("for ",hlp_dat_LenPipeA,hlp_dat_CostPer_Unit," len") -> for 100' len | I35: =IF(hlp_dat_0p00Pipe_Custom_ID>0,(0.25*PI())*( (hlp_dat_0p00Pipe_Custom_ID*retSystNumLenSubUnitsInUnits())^2 )*hlp_dat_LenPipeA,"") ->  | K35: =IF(hlp_dat_0p38Pipe_Pex_ID>0,(0.25*PI())*( (hlp_dat_0p38Pipe_Pex_ID*retSystNumLenSubUnitsInUnits())^2 )*hlp_dat_LenPipeA,"") ->  | L35: =retUnitsFor("Vol") ->  | M35: =IF(hlp_dat_0p50Pipe_BlkPoly_ID>0,(0.25*PI())*( (hlp_dat_0p50Pipe_BlkPoly_ID*retSystNumLenSubUnitsInUnits())^2 )*hlp_dat_LenPipeA,"") ->  | N35: =retUnitsFor("Vol") ->  | O35: =IF(hlp_dat_0p50Pipe_Pex_OD>0,(0.25*PI())*( (hlp_dat_0p50Pipe_Pex_OD*retSystNumLenSubUnitsInUnits())^2 )*hlp_dat_LenPipeA,"") ->  | P35: =retUnitsFor("Vol") ->  | Q35: =IF(hlp_dat_0p75Pipe_BlkPoly_ID>0,(0.25*PI())*( (hlp_dat_0p75Pipe_BlkPoly_ID*retSystNumLenSubUnitsInUnits())^2 )*hlp_dat_LenPipeA,"") ->  | R35: =retUnitsFor("Vol") ->  | S35: =IF(hlp_dat_0p75Pipe_Pex_ID>0,(0.25*PI())*( (hlp_dat_0p75Pipe_Pex_ID*retSystNumLenSubUnitsInUnits())^2 )*hlp_dat_LenPipeA,"") ->  | T35: =retUnitsFor("Vol") ->  | U35: =IF(hlp_dat_1p00Pipe_BlkPoly_ID>0,(0.25*PI())*( (hlp_dat_1p00Pipe_BlkPoly_ID*retSystNumLenSubUnitsInUnits())^2 )*hlp_dat_LenPipeA,"") ->  | V35: =retUnitsFor("Vol") ->  | W35: =IF(hlp_dat_1p00Pipe_Pex_ID>0,(0.25*PI())*( (hlp_dat_1p00Pipe_Pex_ID*retSystNumLenSubUnitsInUnits())^2 )*hlp_dat_LenPipeA,"") ->  | X35: =retUnitsFor("Vol") ->  | Y35: =IF(hlp_dat_1p00Pipe_PvcSch40_ID>0,(0.25*PI())*( (hlp_dat_1p00Pipe_PvcSch40_ID*retSystNumLenSubUnitsInUnits())^2 )*hlp_dat_LenPipeA,"") ->  | Z35: =retUnitsFor("Vol") -> 
D36: =CONCATENATE("for ",hlp_dat_LenPipeB,hlp_dat_CostPer_Unit," len") -> for 200' len | I36: =IF(hlp_dat_0p00Pipe_Custom_ID>0,(0.25*PI())*( (hlp_dat_0p00Pipe_Custom_ID*retSystNumLenSubUnitsInUnits())^2 )*hlp_dat_LenPipeB,"") ->  | K36: =IF(hlp_dat_0p38Pipe_Pex_ID>0,(0.25*PI())*( (hlp_dat_0p38Pipe_Pex_ID*retSystNumLenSubUnitsInUnits())^2 )*hlp_dat_LenPipeB,"") ->  | L36: =retUnitsFor("Vol") ->  | M36: =IF(hlp_dat_0p50Pipe_BlkPoly_ID>0,(0.25*PI())*( (hlp_dat_0p50Pipe_BlkPoly_ID*retSystNumLenSubUnitsInUnits())^2 )*hlp_dat_LenPipeB,"") ->  | N36: =retUnitsFor("Vol") ->  | O36: =IF(hlp_dat_0p50Pipe_Pex_OD>0,(0.25*PI())*( (hlp_dat_0p50Pipe_Pex_OD*retSystNumLenSubUnitsInUnits())^2 )*hlp_dat_LenPipeB,"") ->  | P36: =retUnitsFor("Vol") ->  | Q36: =IF(hlp_dat_0p75Pipe_BlkPoly_ID>0,(0.25*PI())*( (hlp_dat_0p75Pipe_BlkPoly_ID*retSystNumLenSubUnitsInUnits())^2 )*hlp_dat_LenPipeB,"") ->  | R36: =retUnitsFor("Vol") ->  | S36: =IF(hlp_dat_0p75Pipe_Pex_ID>0,(0.25*PI())*( (hlp_dat_0p75Pipe_Pex_ID*retSystNumLenSubUnitsInUnits())^2 )*hlp_dat_LenPipeB,"") ->  | T36: =retUnitsFor("Vol") ->  | U36: =IF(hlp_dat_1p00Pipe_BlkPoly_ID>0,(0.25*PI())*( (hlp_dat_1p00Pipe_BlkPoly_ID*retSystNumLenSubUnitsInUnits())^2 )*hlp_dat_LenPipeB,"") ->  | V36: =retUnitsFor("Vol") ->  | W36: =IF(hlp_dat_1p00Pipe_Pex_ID>0,(0.25*PI())*( (hlp_dat_1p00Pipe_Pex_ID*retSystNumLenSubUnitsInUnits())^2 )*hlp_dat_LenPipeB,"") ->  | X36: =retUnitsFor("Vol") ->  | Y36: =IF(hlp_dat_1p00Pipe_PvcSch40_ID>0,(0.25*PI())*( (hlp_dat_1p00Pipe_PvcSch40_ID*retSystNumLenSubUnitsInUnits())^2 )*hlp_dat_LenPipeB,"") ->  | Z36: =retUnitsFor("Vol") -> 
D37: =CONCATENATE("for ",hlp_dat_LenPipeC,hlp_dat_CostPer_Unit," len") -> for 300' len | I37: =IF(hlp_dat_0p00Pipe_Custom_ID>0,(0.25*PI())*( (hlp_dat_0p00Pipe_Custom_ID*retSystNumLenSubUnitsInUnits())^2 )*hlp_dat_LenPipeC,"") ->  | K37: =IF(hlp_dat_0p38Pipe_Pex_ID>0,(0.25*PI())*( (hlp_dat_0p38Pipe_Pex_ID*retSystNumLenSubUnitsInUnits())^2 )*hlp_dat_LenPipeC,"") ->  | L37: =retUnitsFor("Vol") ->  | M37: =IF(hlp_dat_0p50Pipe_BlkPoly_ID>0,(0.25*PI())*( (hlp_dat_0p50Pipe_BlkPoly_ID*retSystNumLenSubUnitsInUnits())^2 )*hlp_dat_LenPipeC,"") ->  | N37: =retUnitsFor("Vol") ->  | O37: =IF(hlp_dat_0p50Pipe_Pex_OD>0,(0.25*PI())*( (hlp_dat_0p50Pipe_Pex_OD*retSystNumLenSubUnitsInUnits())^2 )*hlp_dat_LenPipeC,"") ->  | P37: =retUnitsFor("Vol") ->  | Q37: =IF(hlp_dat_0p75Pipe_BlkPoly_ID>0,(0.25*PI())*( (hlp_dat_0p75Pipe_BlkPoly_ID*retSystNumLenSubUnitsInUnits())^2 )*hlp_dat_LenPipeC,"") ->  | R37: =retUnitsFor("Vol") ->  | S37: =IF(hlp_dat_0p75Pipe_Pex_ID>0,(0.25*PI())*( (hlp_dat_0p75Pipe_Pex_ID*retSystNumLenSubUnitsInUnits())^2 )*hlp_dat_LenPipeC,"") ->  | T37: =retUnitsFor("Vol") ->  | U37: =IF(hlp_dat_1p00Pipe_BlkPoly_ID>0,(0.25*PI())*( (hlp_dat_1p00Pipe_BlkPoly_ID*retSystNumLenSubUnitsInUnits())^2 )*hlp_dat_LenPipeC,"") ->  | V37: =retUnitsFor("Vol") ->  | W37: =IF(hlp_dat_1p00Pipe_Pex_ID>0,(0.25*PI())*( (hlp_dat_1p00Pipe_Pex_ID*retSystNumLenSubUnitsInUnits())^2 )*hlp_dat_LenPipeC,"") ->  | X37: =retUnitsFor("Vol") ->  | Y37: =IF(hlp_dat_1p00Pipe_PvcSch40_ID>0,(0.25*PI())*( (hlp_dat_1p00Pipe_PvcSch40_ID*retSystNumLenSubUnitsInUnits())^2 )*hlp_dat_LenPipeC,"") ->  | Z37: =retUnitsFor("Vol") -> 
D38: =CONCATENATE("for ",hlp_dat_LenPipeD,hlp_dat_CostPer_Unit," len") -> for 150' len | I38: =IF(hlp_dat_0p00Pipe_Custom_ID>0,(0.25*PI())*( (hlp_dat_0p00Pipe_Custom_ID*retSystNumLenSubUnitsInUnits())^2 )*hlp_dat_LenPipeD,"") ->  | K38: =IF(hlp_dat_0p38Pipe_Pex_ID>0,(0.25*PI())*( (hlp_dat_0p38Pipe_Pex_ID*retSystNumLenSubUnitsInUnits())^2 )*hlp_dat_LenPipeD,"") ->  | L38: =retUnitsFor("Vol") ->  | M38: =IF(hlp_dat_0p50Pipe_BlkPoly_ID>0,(0.25*PI())*( (hlp_dat_0p50Pipe_BlkPoly_ID*retSystNumLenSubUnitsInUnits())^2 )*hlp_dat_LenPipeC,"") ->  | N38: =retUnitsFor("Vol") ->  | O38: =IF(hlp_dat_0p50Pipe_Pex_OD>0,(0.25*PI())*( (hlp_dat_0p50Pipe_Pex_OD*retSystNumLenSubUnitsInUnits())^2 )*hlp_dat_LenPipeD,"") ->  | P38: =retUnitsFor("Vol") ->  | Q38: =IF(hlp_dat_0p75Pipe_BlkPoly_ID>0,(0.25*PI())*( (hlp_dat_0p75Pipe_BlkPoly_ID*retSystNumLenSubUnitsInUnits())^2 )*hlp_dat_LenPipeD,"") ->  | R38: =retUnitsFor("Vol") ->  | S38: =IF(hlp_dat_0p75Pipe_Pex_ID>0,(0.25*PI())*( (hlp_dat_0p75Pipe_Pex_ID*retSystNumLenSubUnitsInUnits())^2 )*hlp_dat_LenPipeD,"") ->  | T38: =retUnitsFor("Vol") ->  | U38: =IF(hlp_dat_1p00Pipe_BlkPoly_ID>0,(0.25*PI())*( (hlp_dat_1p00Pipe_BlkPoly_ID*retSystNumLenSubUnitsInUnits())^2 )*hlp_dat_LenPipeD,"") ->  | V38: =retUnitsFor("Vol") ->  | W38: =IF(hlp_dat_1p00Pipe_Pex_ID>0,(0.25*PI())*( (hlp_dat_1p00Pipe_Pex_ID*retSystNumLenSubUnitsInUnits())^2 )*hlp_dat_LenPipeD,"") ->  | X38: =retUnitsFor("Vol") ->  | Y38: =IF(hlp_dat_1p00Pipe_PvcSch40_ID>0,(0.25*PI())*( (hlp_dat_1p00Pipe_PvcSch40_ID*retSystNumLenSubUnitsInUnits())^2 )*hlp_dat_LenPipeD,"") ->  | Z38: =retUnitsFor("Vol") -> 
C40: =CONCATENATE("Wt H₂O in pipe") -> Wt H₂O in pipe | D40: =CONCATENATE("for ",hlp_dat_LenPipeA,hlp_dat_CostPer_Unit," len") -> for 100' len | K40: =IF(hlp_dat_0p38Pipe_Pex_ID>0,K35*hlp_wtWaterInUse,"") ->  | L40: =retUnitsFor("Wt") ->  | M40: =IF(hlp_dat_0p38Pipe_Pex_ID>0,M35*hlp_wtWaterInUse,"") ->  | N40: =retUnitsFor("Wt") ->  | O40: =IF(hlp_dat_0p38Pipe_Pex_ID>0,O35*hlp_wtWaterInUse,"") ->  | P40: =retUnitsFor("Wt") ->  | Q40: =IF(hlp_dat_0p38Pipe_Pex_ID>0,Q35*hlp_wtWaterInUse,"") ->  | R40: =retUnitsFor("Wt") ->  | S40: =IF(hlp_dat_0p38Pipe_Pex_ID>0,S35*hlp_wtWaterInUse,"") ->  | T40: =retUnitsFor("Wt") ->  | U40: =IF(hlp_dat_0p38Pipe_Pex_ID>0,U35*hlp_wtWaterInUse,"") ->  | V40: =retUnitsFor("Wt") ->  | W40: =IF(hlp_dat_0p38Pipe_Pex_ID>0,W35*hlp_wtWaterInUse,"") ->  | X40: =retUnitsFor("Wt") ->  | Y40: =IF(hlp_dat_0p38Pipe_Pex_ID>0,Y35*hlp_wtWaterInUse,"") ->  | Z40: =retUnitsFor("Wt") -> 
D41: =CONCATENATE("for ",hlp_dat_LenPipeB,hlp_dat_CostPer_Unit," len") -> for 200' len | K41: =IF(hlp_dat_0p38Pipe_Pex_ID>0,K36*hlp_wtWaterInUse,"") ->  | L41: =retUnitsFor("Wt") ->  | M41: =IF(hlp_dat_0p38Pipe_Pex_ID>0,M36*hlp_wtWaterInUse,"") ->  | N41: =retUnitsFor("Wt") ->  | O41: =IF(hlp_dat_0p38Pipe_Pex_ID>0,O36*hlp_wtWaterInUse,"") ->  | P41: =retUnitsFor("Wt") ->  | Q41: =IF(hlp_dat_0p38Pipe_Pex_ID>0,Q36*hlp_wtWaterInUse,"") ->  | R41: =retUnitsFor("Wt") ->  | S41: =IF(hlp_dat_0p38Pipe_Pex_ID>0,S36*hlp_wtWaterInUse,"") ->  | T41: =retUnitsFor("Wt") ->  | U41: =IF(hlp_dat_0p38Pipe_Pex_ID>0,U36*hlp_wtWaterInUse,"") ->  | V41: =retUnitsFor("Wt") ->  | W41: =IF(hlp_dat_0p38Pipe_Pex_ID>0,W36*hlp_wtWaterInUse,"") ->  | X41: =retUnitsFor("Wt") ->  | Y41: =IF(hlp_dat_0p38Pipe_Pex_ID>0,Y36*hlp_wtWaterInUse,"") ->  | Z41: =retUnitsFor("Wt") -> 
D42: =CONCATENATE("for ",hlp_dat_LenPipeC,hlp_dat_CostPer_Unit," len") -> for 300' len | K42: =IF(hlp_dat_0p38Pipe_Pex_ID>0,K37*hlp_wtWaterInUse,"") ->  | L42: =retUnitsFor("Wt") ->  | M42: =IF(hlp_dat_0p38Pipe_Pex_ID>0,M37*hlp_wtWaterInUse,"") ->  | N42: =retUnitsFor("Wt") ->  | O42: =IF(hlp_dat_0p38Pipe_Pex_ID>0,O37*hlp_wtWaterInUse,"") ->  | P42: =retUnitsFor("Wt") ->  | Q42: =IF(hlp_dat_0p38Pipe_Pex_ID>0,Q37*hlp_wtWaterInUse,"") ->  | R42: =retUnitsFor("Wt") ->  | S42: =IF(hlp_dat_0p38Pipe_Pex_ID>0,S37*hlp_wtWaterInUse,"") ->  | T42: =retUnitsFor("Wt") ->  | U42: =IF(hlp_dat_0p38Pipe_Pex_ID>0,U37*hlp_wtWaterInUse,"") ->  | V42: =retUnitsFor("Wt") ->  | W42: =IF(hlp_dat_0p38Pipe_Pex_ID>0,W37*hlp_wtWaterInUse,"") ->  | X42: =retUnitsFor("Wt") ->  | Y42: =IF(hlp_dat_0p38Pipe_Pex_ID>0,Y37*hlp_wtWaterInUse,"") ->  | Z42: =retUnitsFor("Wt") -> 
D43: =CONCATENATE("for ",hlp_dat_LenPipeD,hlp_dat_CostPer_Unit," len") -> for 150' len | K43: =IF(hlp_dat_0p38Pipe_Pex_ID>0,K38*hlp_wtWaterInUse,"") ->  | L43: =retUnitsFor("Wt") ->  | M43: =IF(hlp_dat_0p38Pipe_Pex_ID>0,M38*hlp_wtWaterInUse,"") ->  | N43: =retUnitsFor("Wt") ->  | O43: =IF(hlp_dat_0p38Pipe_Pex_ID>0,O38*hlp_wtWaterInUse,"") ->  | P43: =retUnitsFor("Wt") ->  | Q43: =IF(hlp_dat_0p38Pipe_Pex_ID>0,Q38*hlp_wtWaterInUse,"") ->  | R43: =retUnitsFor("Wt") ->  | S43: =IF(hlp_dat_0p38Pipe_Pex_ID>0,S38*hlp_wtWaterInUse,"") ->  | T43: =retUnitsFor("Wt") ->  | U43: =IF(hlp_dat_0p38Pipe_Pex_ID>0,U38*hlp_wtWaterInUse,"") ->  | V43: =retUnitsFor("Wt") ->  | W43: =IF(hlp_dat_0p38Pipe_Pex_ID>0,W38*hlp_wtWaterInUse,"") ->  | X43: =retUnitsFor("Wt") ->  | Y43: =IF(hlp_dat_0p38Pipe_Pex_ID>0,Y38*hlp_wtWaterInUse,"") ->  | Z43: =retUnitsFor("Wt") -> 
C45: R-value calculated | K45: =(hlp_dat_0p38Pipe_Pex_OD*((((LN(hlp_dat_0p38Pipe_Pex_OD/hlp_dat_0p38Pipe_Pex_ID)))/tstCellRet())+(1/(tstCellRet()*hlp_dat_0p38Pipe_Pex_OD)))) -> 1.329305073 | M45: =(hlp_dat_0p50Pipe_BlkPoly_OD*(LN(hlp_dat_0p50Pipe_BlkPoly_OD/hlp_dat_0p50Pipe_BlkPoly_ID)))/tstCellRet() -> 0.08275140979 | O45: =(hlp_dat_0p50Pipe_Pex_OD*(LN(hlp_dat_0p50Pipe_Pex_OD/hlp_dat_0p50Pipe_Pex_ID)))/tstCellRet() -> 0.0298050316 | Q45: =(hlp_dat_0p75Pipe_BlkPoly_OD*(LN(hlp_dat_0p75Pipe_BlkPoly_OD/hlp_dat_0p75Pipe_BlkPoly_ID)))/tstCellRet() -> 0.1691024172 | S45: =(hlp_dat_0p75Pipe_Pex_OD*(LN(hlp_dat_0p75Pipe_Pex_OD/hlp_dat_0p75Pipe_Pex_ID)))/tstCellRet() -> 0.09701330408 | U45: =(hlp_dat_1p00Pipe_BlkPoly_OD*(LN(hlp_dat_1p00Pipe_BlkPoly_OD/hlp_dat_1p00Pipe_BlkPoly_ID)))/tstCellRet() -> 0.1584590954 | W45: =(hlp_dat_1p00Pipe_Pex_OD*(LN(hlp_dat_1p00Pipe_Pex_OD/hlp_dat_1p00Pipe_Pex_ID)))/tstCellRet() -> 0.1419760705 | Y45: =(hlp_dat_1p00Pipe_PvcSch40_OD*(LN(hlp_dat_1p00Pipe_PvcSch40_OD/hlp_dat_1p00Pipe_PvcSch40_ID)))/tstCellRet() -> 1.01235366
C47: Temperature, | D47: target, °F | G47: 95 | H47: °F | K47: =(PI()*(hlp_dat_tempTarget_degF-hlp_dat_tempAmbient_degF))/(LN(hlp_dat_0p38Pipe_Pex_OD/hlp_dat_0p38Pipe_Pex_ID)) -> 709.8235936 | L47: BTU/ft
D48: target, °C | G48: =convTempFtoC(G47) -> 35 | H48: °C | M48: =(PI()*(hlp_dat_tempTarget_degF-hlp_dat_tempAmbient_degF)) -> 204.2035225 | O48: =(PI()*(hlp_dat_tempTarget_degF-hlp_dat_tempAmbient_degF))
D49: ambient, °F | G49: 30 | H49: °F | K49: =ROUND(tstCellRet(),2) -> 0.86 | M49: =(LN(hlp_dat_0p38Pipe_Pex_OD/hlp_dat_0p38Pipe_Pex_ID))/2*K49 -> 0.1237032912 | O49: =(LN(hlp_dat_0p38Pipe_Pex_OD/hlp_dat_0p38Pipe_Pex_ID))
D50: ambient, °C | G50: =convTempFtoC(G49) -> -1.111111111 | H50: °C
D55: ft2/sec
D56: Heat loss per ft | K56: cond format so that values that equal values in prev corresp col are not shown
D57: Feet to achieve ambient

Sheet Thermal Conductivity
A1: Thermal Conductivity
A2: thC
G3: SI = | H3: =cnv__name_WPerMDegC -> W m-1 °C-1 | J3: 1
G4: US = | H4: =cnv__name_BtuFtPerHrPerInSqDegF -> BTU ft hr-1 in-2 °F-1 | J4: =J3*cnv_wPerMDegCToBtuFtPerHrPerInSqDegF -> 0.1442278889
A7: =MIN(A9:A42) -> 2.011358484 | B7: =MIN(B9:B42) -> 1.162141444 | G7: k-Value
A8: R-value | D8: Code | E8: Pipe material | G8: Average | H8: …refs
A9: =1/G10 -> 3.546532889 | B9: =1/G11 -> 2.049148814 | D9: ABS | E9: ABS [acrylonitrile-butadiene-styrene] | F9: Refs | H9: =CONCATENATE(References!$D$30) -> 24 | I9: =CONCATENATE(References!$D$31) -> 25
F10: SI | G10: =IF(SUM(H10:J10)>0,AVERAGE(H10:Q10),"") -> 0.2819655227 | H10: =H11*(cnv_wPerMDegCToBtuFtPerHrPerInSqDegF) -> 0.3692233955 | I10: =I11*(cnv_wPerMDegCToBtuFtPerHrPerInSqDegF) -> 0.19470765
F11: US | G11: =G10*cnv_wPerMDegCToBtuFtPerHrPerFtSqDegF -> 0.4880075049 | H11: 2.56 | I11: 1.35
A12: =1/G13 -> 7.692307692 | B12: =1/G14 -> 4.444533204 | D12: ButylRubber | E12: Butyl rubber [Poly(isobutylene)] | F12: Refs | H12: =CONCATENATE(References!$D$12,",",References!$D$18,",",References!$D$19) -> 6,12,13
F13: SI | G13: =IF(SUM(H13:J13)>0,AVERAGE(H13:Q13),"") -> 0.13 | H13: 0.13
F14: US | G14: =G13*cnv_wPerMDegCToBtuFtPerHrPerFtSqDegF -> 0.2249955066
A15: =1/G16 -> 7.036607168 | B15: =1/G17 -> 4.065676446 | D15: CPVC | E15: CPVC [Poly(vinyl chloride)] | F15: Refs | H15: =CONCATENATE(References!$D$16) -> 10 | I15: =CONCATENATE(References!$D$31) -> 25
F16: SI | G16: =IF(SUM(H16:K16)>0,AVERAGE(H16:Q16),"") -> 0.1421139444 | H16: 0.14 | I16: =I17*(cnv_wPerMDegCToBtuFtPerHrPerInSqDegF) -> 0.1442278889
F17: US | G17: =G16*cnv_wPerMDegCToBtuFtPerHrPerFtSqDegF -> 0.2459615302 | I17: 1
A18: =1/G19 -> 2.816901408 | B18: =1/G20 -> 1.62757554 | D18: EPDM | E18: EPDM [Ethylene-propylene-diene monomer] | F18: Refs | H18: =CONCATENATE(References!$D$12,",",References!$D$13,",",References!$D$14,",",References!$D$15) -> 6,7,8,9
F19: SI | G19: =IF(SUM(H19:K19)>0,AVERAGE(H19:Q19),"") -> 0.355 | H19: 0.355
F20: US | G20: =G19*cnv_wPerMDegCToBtuFtPerHrPerFtSqDegF -> 0.6144108066
A21: =1/G22 -> 4.570788951 | B21: =1/G23 -> 2.640953024 | D21: PB | E21: PB [Poly(butene-1)] | F21: Refs | H21: =CONCATENATE(References!$D$12,",",References!$D$20) -> 6,14 | I21: =CONCATENATE(References!$D$12,",",References!$D$20) -> 6,14 | J21: =CONCATENATE(References!$D$30) -> 24
F22: SI | G22: =IF(SUM(H22:K22)>0,AVERAGE(H22:Q22),"") -> 0.2187806111 | H22: 0.22 | I22: 0.22 | J22: =J23*(cnv_wPerMDegCToBtuFtPerHrPerInSqDegF) -> 0.2163418333
F23: US | G23: =G22*cnv_wPerMDegCToBtuFtPerHrPerFtSqDegF -> 0.378651188 | J23: 1.5
A24: =1/G25 -> 2.280400341 | B24: =1/G26 -> 1.317590955 | D24: PE, black poly | E24: PE, HDPE, LPE [Polyethylene, linear high density, etc.] | F24: Refs | H24: =CONCATENATE(References!$D$12,",",References!$D$17) -> 6,11 | I24: =CONCATENATE(References!$D$12,",",References!$D$17) -> 6,11 | J24: =CONCATENATE(References!$D$16) -> 10 | K24: =CONCATENATE(References!$D$29) -> 23 | L24: =CONCATENATE(References!$D$29) -> 23 | M24: =CONCATENATE(References!$D$30) -> 24 | N24: =CONCATENATE(References!$D$31) -> 25 | O24: 26
F25: SI | G25: =IF(SUM(H25:K25)>0,AVERAGE(H25:Q25),"") -> 0.4385194923 | H25: 0.52 | I25: 0.52 | J25: 0.38 | K25: 0.42 | L25: 0.51 | M25: =M26*(cnv_wPerMDegCToBtuFtPerHrPerInSqDegF) -> 0.3966266944 | N25: =N26*(cnv_wPerMDegCToBtuFtPerHrPerInSqDegF) -> 0.4615292444 | O25: 0.3
F26: US | G26: =G25*cnv_wPerMDegCToBtuFtPerHrPerFtSqDegF -> 0.7589608873 | M26: 2.75 | N26: 3.2
A27: =1/G28 -> 4 | B27: =1/G29 -> 2.311157266 | D27: PEEK | E27: PEEK [Poly(ether ether ketone)] | F27: Refs | H27: =CONCATENATE(References!$D$12,",",References!$D$21) -> 6,15
F28: SI | G28: =IF(SUM(H28:K28)>0,AVERAGE(H28:Q28),"") -> 0.25 | H28: 0.25
F29: US | G29: =G28*cnv_wPerMDegCToBtuFtPerHrPerFtSqDegF -> 0.4326836666
A30: =1/G31 -> 2.011358484 | B30: =1/G32 -> 1.162141444 | D30: PEX | E30: PEX [Polyethylene, linear high density cross-linked] | F30: Refs | H30: =CONCATENATE(References!$D$16) -> 10 | I30: =CONCATENATE(References!$D$17) -> 11 | J30: =CONCATENATE(References!$D$30) -> 24
F31: SI | G31: =IF(SUM(H31:K31)>0,AVERAGE(H31:Q31),"") -> 0.4971764148 | H31: 0.51 | I31: 0.52 | J31: =J32*(cnv_wPerMDegCToBtuFtPerHrPerInSqDegF) -> 0.4615292444
F32: US | G32: =G31*cnv_wPerMDegCToBtuFtPerHrPerFtSqDegF -> 0.8604804564 | J32: 3.2
A33: =1/G34 -> 7.272727273 | B33: =1/G35 -> 4.20210412 | D33: PP | E33: PP [Polyproplene] | F33: Refs | H33: =CONCATENATE(References!$D$12,",",References!$D$22) -> 6,16 | I33: =CONCATENATE(References!$D$12,",",References!$D$22) -> 6,16 | J33: =CONCATENATE(References!$D$29) -> 23 | K33: 26
F34: SI | G34: =IF(SUM(H34:K34)>0,AVERAGE(H34:Q34),"") -> 0.1375 | H34: 0.12 | I34: 0.22 | J34: 0.1 | K34: 0.11
F35: US | G35: =G34*cnv_wPerMDegCToBtuFtPerHrPerFtSqDegF -> 0.2379760166
A36: =1/G37 -> 8.928571429 | B36: =1/G38 -> 5.158833183 | D36: PS | E36: PS [Polystyrene, Styrofoam] | F36: Refs | H36: =CONCATENATE(References!$D$12,",",References!$D$23,",",References!$D$24,",",References!$D$25) -> 6,17,18,19 | I36: =CONCATENATE(References!$D$12,",",References!$D$23,",",References!$D$24,",",References!$D$25) -> 6,17,18,19 | J36: =CONCATENATE(References!$D$12,",",References!$D$23,",",References!$D$24,",",References!$D$25) -> 6,17,18,19 | K36: =CONCATENATE(References!$D$12,",",References!$D$23,",",References!$D$24,",",References!$D$25) -> 6,17,18,19 | L36: 26
F37: SI | G37: =IF(SUM(H37:K37)>0,AVERAGE(H37:Q37),"") -> 0.112 | H37: 0.105 | I37: 0.105 | J37: 0.105 | K37: 0.105 | L37: 0.14
F38: US | G38: =G37*cnv_wPerMDegCToBtuFtPerHrPerFtSqDegF -> 0.1938422826
A39: =1/G40 -> 3.66832447 | B39: =1/G41 -> 2.119518688 | D39: PTFE, Teflon | E39: PTFE, Teflon [Poly(tetrafluoroethylene)] | F39: Refs | H39: =CONCATENATE(References!$D$12,",",References!$D$26) -> 6,20 | I39: =CONCATENATE(References!$D$29) -> 23 | J39: 26 | M39: (Ref 6&20 say "(4.86 x 10-4)T + 0.253") | P39: =CONCATENATE("T = ",INT(convTempCtoK(25)),"°K") -> T = 298°K | Q39: T = 25°C
F40: SI | G40: =IF(SUM(H40:K40)>0,AVERAGE(H40:L40),"") -> 0.2726040208 | H40: =Q40 -> 0.2978120624 | I40: 0.25 | J40: 0.27 | P40: =((4.86^-4)*convTempCtoK(25))+0.253 -> 0.7874286557 | Q40: =((4.86^-4)*25)+0.253 -> 0.2978120624
F41: US | G41: =G40*cnv_wPerMDegCToBtuFtPerHrPerFtSqDegF -> 0.471805229
A42: =1/G43 -> 5.520197938 | B42: =1/G44 -> 3.189511394 | D42: PVC | E42: PVC [Poly(vinyl chloride)] | F42: Refs | H42: =CONCATENATE(References!$D$27) -> 21 | I42: =CONCATENATE(References!$D$27) -> 21 | J42: =CONCATENATE(References!$D$27) -> 21 | K42: =CONCATENATE(References!$D$27) -> 21 | L42: =CONCATENATE(References!D28) -> 22 | M42: =CONCATENATE(References!$D$16) -> 10 | N42: =CONCATENATE(References!$D$30) -> 24 | O42: =CONCATENATE(References!$D$31) -> 25
F43: SI | G43: =IF(SUM(H43:K43)>0,AVERAGE(H43:Q43),"") -> 0.1811529244 | H43: 0.14 | I43: 0.28 | J43: 0.14 | K43: 0.17 | L43: 0.16 | M43: 0.19 | N43: =N44*(cnv_wPerMDegCToBtuFtPerHrPerInSqDegF) -> 0.2105727177 | O43: =O44*(cnv_wPerMDegCToBtuFtPerHrPerInSqDegF) -> 0.1586506778
F44: US | G44: =G43*cnv_wPerMDegCToBtuFtPerHrPerFtSqDegF -> 0.3135276462 | N44: 1.46 | O44: 1.1

Sheet References
A1: References
A2: ref
D4: 0
D6: Reference #
D7: =IF(AND(E7<>"",NOT(ISNUMBER(D6))),1,IF(E7<>"",D6+1,"")) -> 1 | E7: Charlotte_Plastics-Technical-and-Installation-Manual.pdf
D8: 2 | E8: http://www.coolinterview.com/interview/53980/
D9: 3 | E9: The Complete Biogas Handbook
D10: 4 | E10: "Insulating-Plastic-Pipes-(CPVC-and-PEX)-in-Residential-and-Commercial-Applications.pdf" in B:\_Reference books\Buildings-and-materials\Pipes-and-Piping\Plastic-thermal
D11: 5 | E11: "R-Value-and-Thermal-Conductivity-of-PEX-and-PE-RT.pdf", in B:\_Reference books\Buildings-and-materials\Pipes-and-Piping\Plastic-thermal
D12: 6 | E12: "Polymer-Data-Handbook. pdf", in B:\_Reference books\Plastics
D13: 7 | E13: Baldwin, F. P., and G. Ver Strate. Rubber Reviews 44 (1972): 709.
D14: 8 | E14: Ver Strate, G. In Encyclopedia of Polymer Science and Engineering, 2d ed., edited by H. F. Mark, et al. John Wiley and Sons, New York, 1987, vol. 6, p. 522.
D15: 9 | E15: Mark, H. F., et al., eds. Encyclopedia of Chemical Technology. Wiley-Interscience, New York, 1978.
D16: 10 | E16: Patterson and Miers, "The Thermal Conductivity of Common Tubing Materials Applied in a Solar Water Heater Collector"
D17: 11 | E17: Yang, Y. In Physical Properties of Polymer Handbook, edited by J. E. Mark. AIP Press, Woodbury, N.Y., 1996, p. 111.
D18: 12 | E18: Nasr, G. M., et al. Polym. Degradation Stab. 48 (1995): 237.
D19: 13 | E19: Goldsmith, T. E. Waterman, and J. Hirschborn, eds. Handbook of Thermoproperties and Solid Materials. Macmillan, New York, 1961, vol. IV.
D20: 14 | E20: Chatterjee. A. M. In Encyclopedia of Polymer Science and Engineering, 2d ed., edited by J. I. Kroschwitz. John Wiley and Sons, New York, 1985, vol. 2.
D21: 15 | E21: May, R. In Encyclopedia of Polymer Science and Engineering, edited by J. I. Kroschwitz. John Wiley and Sons, New York, 1990, Vol. 12, pp. 313-320.
D22: 16 | E22: Thompson, E. V.. In Encyclopedia of Polymer Science and Engineering, edited by H. F. Mark, et al. Wiley-Interscience, New York, 1985, vol. 16, pp. 711-747.
D23: 17 | E23: Brandrup, J., and E. H. Immergut. Polymer Handbook, 3d ed. Wiley-Interscience, New York, 1989
D24: 18 | E24: Mark, J. E., ed. Physical Properties of Polymers Handbook. AIP Press, Woodbury, New York, 1996
D25: 19 | E25: Boyer, R. F. In Encyclopedia of Polymer Science and Technology, edited by H. F. Mark, et al. John Wiley and Sons, New York, 1970, vol. 13.
D26: 20 | E26: Sperati, C. A. In Polymer Handbook, 3 ed., Vol. 35, edited by J. Brandrup and E. H. Immergut. John Wiley and Sons, New York, 1989.
D27: 21 | E27: W. V. Titow (31 December 1984). PVC technology. Springer. pp. 6–. ISBN 978-0-85334-249-6. Retrieved 6 October 2011.
D28: 22 | E28: http://www.vinidex.com.au/technical/material-properties/pvc-properties/
D29: 23 | E29: http://americandreamgeothermal.com/thermal-conductivity-myths-and-facts-copper-plastic-air-and-water/
D30: =IF(AND(E30<>"",NOT(ISNUMBER(D29))),1,IF(E30<>"",D29+1,"")) -> 24 | E30: Typical-Properties-of-Plastic-Pipe-Materials.pdf
D31: 25 | E31: Piping-Handbook.pdf
D32: 26 | E32: C. T'Joena et al, "A review on polymer heat exchangers for HVAC&R applications" International Journal of Refrigeration, 32(5), pp 763–779, 2009

Sheet k Values
A1: k Values, and other stuff
A2: kval
I3: This equation yields an “R” value on a square foot basis [for a pipe] | O3: For a flat surface, R-value is the reciprocal of the k-value, thus a lower R-value means greater heat
K4: where: | L4: r1 = ID | O4: conduction and vice versa. The letter “R” is placed before the numerical value, as in R19 or R-19.
L5: r2 = OD
O6: (BTU-in)/(ft2 hr °F) = 0.1442279 W/(m °K)
D7: Thermal Conductivity
I8: R-Value | O8: k-Value | P8: k= thermal conductivity (BTU-in/hr ft2°F) | U8: Thermal Conductivity
E9: Pipe material | I9: (Average) | J9: Ref 1 | K9: Ref 2 | L9: Ref 7 | M9: Ref 4 | N9: Ref 5 | O9: (Average) | P9: Ref 1 | Q9: Ref 6 | R9: Ref 7 | S9: Ref 4 | T9: Ref 5 | U9: (BTU-in)/(ft2 hr °F) | V9: W/(m°K)
F10: ABS | O10: =IF(SUM(P10:S10)>0,AVERAGE(P10:S10),"") -> 
F11: CPVC | O11: =IF(SUM(P11:S11)>0,AVERAGE(P11:S11),"") -> 0.95 | P11: 0.95
G12: =0.5 -> 0.5 | H12: " | I12: =IF(SUM(J12:M12)>0,AVERAGE(J12:M12),"") -> 0.0755 | J12: 0.071 | K12: 0.08 | O12: =IF(SUM(P12:S12)>0,AVERAGE(P12:S12),"") -> 
G13: 0.75 | H13: " | I13: 0.0865 | J13: 0.083 | K13: 0.09
G14: =1 -> 1 | H14: " | I14: 0.113 | J14: 0.106 | K14: 0.12
G15: =1.25 -> 1.25 | H15: " | I15: 0.14 | J15: 0.13 | K15: 0.15
G16: =1.5 -> 1.5 | H16: " | I16: 0.162 | J16: 0.154 | K16: 0.17
G17: =2 -> 2 | H17: " | I17: 0.2105 | J17: 0.201 | K17: 0.22
F18: PE
F19: Black poly
F20: PE, HD
F21: PE, low
F22: PE, med
F23: PE, ultra HD | V23: Ref 7
F24: PE RT | O24: 3.15 | R24: 3.15 | V24: 0.46
F26: PEX | O26: 2.63 | P26: 2.4 | Q26: 2.86 | V26: 0.41
G27: =0.5 -> 0.5 | H27: " | I27: =IF(SUM(J27:M27)>0,AVERAGE(J27:M27),"") -> 0.034 | K27: 0.04 | L27: 0.028
G28: 0.75 | H28: " | I28: 0.044 | K28: 0.05 | L28: 0.038
G29: =1 -> 1 | H29: " | I29: 0.0545 | K29: 0.06 | L29: 0.049
G30: =1.25 -> 1.25 | H30: " | I30: 0.07 | K30: 0.08 | L30: 0.06
G31: =1.5 -> 1.5 | H31: " | I31: 0.081 | K31: 0.09 | L31: 0.072
G32: =2 -> 2 | H32: " | I32: 0.1065 | K32: 0.12 | L32: 0.093
F33: PP
F34: PVC, sch 40
G35: =0.5 -> 0.5 | H35: " | I35: =IF(SUM(J35:M35)>0,AVERAGE(J35:M35),"") -> 0.031 | J35: 0.031 | U35: 0.109
G36: 0.75 | H36: " | I36: 0.032 | J36: 0.032 | U36: 0.113
G37: =1 -> 1 | H37: " | I37: 0.038 | J37: 0.038 | U37: 0.133
G38: =1.25 -> 1.25 | H38: " | I38: 0.04 | J38: 0.04 | U38: 0.14
G39: =1.5 -> 1.5 | H39: " | I39: 0.041 | J39: 0.041 | U39: 0.145
G40: =2 -> 2 | H40: " | I40: 0.044 | J40: 0.044 | U40: 0.154
F42: Copper | O42: 2616 | P42: 2616 | U42: 196 | V42: 28

Sheet "A review on polymer..."
A2: Properties | B2: Ionomer | C2: LDPE | D2: Nylon-6.6 | E2: PC | F2: PEEK | G2: PPS | H2: PPSU | I2: PP | J2: PS | K2: PSU | L2: PTFE | M2: PVDF
A3: Density, g/cc | B3: 0.955 | C3: 0.923 | D3: 1.12 | E3: 1.2 | F3: 1.33 | G3: 1.43 | H3: 1.29 | I3: 0.937 | J3: 1.05 | K3: 1.24 | L3: 2.17 | M3: 1.78
A4: Water absorption, % | B4: 0.01 | C4: 0.067 | D4: 2.3 | E4: 0.17 | F4: 0.21 | G4: 0.031 | H4: 0.37 | I4: 0.079 | J4: 0.088 | K4: 0.41 | L4: 0.0042 | M4: 0.032
A5: Moisture absorption at equilibrium, % | B5: 0.011 | C5: 0.01 | D5: 2 | E5: 0.27 | F5: 0.46 | G5: 0.03 | H5: 0.85 | I5: 0.1 | J5: 0.089 | K5: 0.32 | M5: 0.018
A6: Tensile strength, ultimate, MPa | B6: 27.1 | C6: 11 | D6: 73.1 | E6: 64 | F6: 110 | G6: 86.7 | H6: 76 | I6: 36.8 | J6: 44.9 | K6: 72 | L6: 33.6 | M6: 42.8
A7: Tensile strength, yield, MPa | B7: 14.3 | C7: 10.8 | D7: 63.6 | E7: 62 | F7: 98.8 | G7: 68.9 | H7: 72 | I7: 30.7 | J7: 43.9 | K7: 74.9 | L7: 11.6 | M7: 44
A8: Elongation at break, % | B8: 440 | C8: 190 | D8: 82.8 | E8: 98 | F8: 36.7 | G8: 4.1 | H8: 60 | I8: 120 | J8: 6.9 | K8: 56.8 | L8: 400 | M8: 64.6
A9: Tensile modulus, GPa | B9: 0.3 | C9: 0.21 | D9: 2.1 | E9: 2.3 | F9: 4.5 | G9: 3.6 | H9: 7.2 | I9: 1.9 | J9: 3 | K9: 2.5 | L9: 0.61 | M9: 1.8
A10: Flexural modulus, GPa | B10: 0.25 | C10: 0.27 | D10: 2.4 | E10: 2.3 | F10: 4.8 | G10: 4.9 | H10: 2.4 | I10: 1.4 | J10: 2.8 | K10: 2.8 | L10: 0.52 | M10: 1.7
A11: Flexural yield strength, MPa | D11: 88.4 | E11: 91.8 | F11: 170 | G11: 140 | H11: 130 | I11: 36.2 | J11: 84.2 | K11: 100 | M11: 44.2
A12: CTE, linear 20 °C, mm/m-°C | B12: 150 | C12: 210 | D12: 100 | E12: 70.2 | F12: 44.1 | G12: 39.2 | H12: 55.8 | I12: 120 | J12: 79.8 | K12: 60.1 | L12: 100 | M12: 140
A13: CTE, linear 100 °C, mm/m-°C | D13: 100 | E13: 65 | F13: 39.2 | G13: 170 | H13: 55 | K13: 60 | L13: 140 | M13: 145
A14: Thermal conductivity, W/m-K | B14: 0.24 | C14: 0.3 | D14: 0.26 | E14: 0.2 | F14: 0.25 | G14: 0.3 | H14: 0.35 | I14: 0.11 | J14: 0.14 | K14: 0.22 | L14: 0.27 | M14: 0.19
A15: Melting point, °C | B15: 85.1 | C15: 110 | D15: 250 | F15: 340 | G15: 280 | I15: 160 | L15: 330 | M15: 160
A16: Glass temperature, °C | E16: 150 | F16: 140 | G16: 88 | H16: 220 | J16: 90.4 | K16: 190 | M16: -37.6
A17: Specific heat capacity, J/g-°C | B17: 2.4 | C17: 2.2 | D17: 2.2 | E17: 1.2 | F17: 2 | I17: 2 | J17: 2.1 | K17: 1.2 | L17: 1.4 | M17: 1.5
B19: from C. T'Joena et al, "A review on polymer heat exchangers for HVAC&R applications" International Journal of Refrigeration, 32(5), pp 763–779, 2009
B22: "Polyethylene (PE) has a comparatively low density. It is sufficiently
B23: robust to be virtually unbreakable, and at the same
B24: time, it is quite flexible. Chemically, PE is inert at room
B25: temperature although it is slowly attacked by strong oxidizing
B26: agents, and some solvents will cause softening or swelling. It
B27: may be used at temperatures up to 95°C for short periods and
B28: at 80°C continuously." | H28: =convTempCtoF(80) -> 176 | I28: °F

Sheet Friction loss
E4: mention that some metals will easily form a crust, thus diminishing the heat transfer depending on time and temperature of the pipe
E10: Fitting | F10: 1⁄2” | G10: 3⁄4” | H10: 1” | I10: 11⁄4” | J10: 11⁄2” | K10: 2” | L10: 21⁄2”
E11: Tee (Run) | F11: 1 | G11: 1.4 | H11: 1.7 | I11: 2.3 | J11: 2.7 | K11: 4.3 | L11: 5.1
E12: Tee (Branch) | F12: 4 | G12: 5 | H12: 6 | I12: 7.3 | J12: 8.4 | K12: 12 | L12: 15
E13: 90° Elbow | F13: 1.5 | G13: 2 | H13: 2.5 | I13: 3.8 | J13: 4 | K13: 5.7 | L13: 6.9
E14: 45° Elbow | F14: 0.8 | G14: 1.1 | H14: 1.4 | I14: 1.8 | J14: 2.1 | K14: 2.6 | L14: 3.1
E15: Male/Female Adapter | F15: 1 | G15: 1.5 | H15: 2 | I15: 2.75 | J15: 3.5 | K15: 4.5 | L15: 5.5
M18: Frictional Losses for CTS CPVC Pipe | Q18: from BOW-Flowgaurd-Gold-Product-Installation-Guide.pdf,
M19: at Different Water Velocities | Q19: in B:\_Reference books\Buildings-and-materials\Pipes-and-Piping\Plastic-thermal
M21: v | N21: 1/2" | P21: 3/4" | R21: 1"
N22: Q | O22: P | P22: Q | Q22: P | R22: Q | S22: P
M23: 2 | N23: 1.14 | O23: 1.86 | P23: 2.47 | Q23: 1.2 | R23: 4.11 | S23: 0.9
I24: V = Water Velocity, ft. per sec. | M24: 4 | N24: 2.29 | O24: 6.75 | P24: 4.94 | Q24: 4.34 | R24: 8.22 | S24: 3.24
I25: Q = Flow Rate, gal/min. | M25: 5 | N25: 2.87 | O25: 10.25 | P25: 6.17 | Q25: 6.55 | R25: 10.27 | S25: 4.89
I26: P = Pressure Loss, PSI per 100 ft. | M26: 6 | N26: 3.44 | O26: 14.34 | P26: 7.4 | Q26: 9.18 | R26: 12.32 | S26: 6.85
D27: =3*28 -> 84 | M27: 8 | N27: 4.59 | O27: 24.45 | P27: 9.87 | Q27: 15.65 | R27: 16.43 | S27: 11.68
M28: 10 | N28: 5.74 | O28: 37 | P28: 12.34 | Q28: 23.66 | R28: 20.54 | S28: 17.66
M29: v | O29: 1-1/4" | Q29: 1-1/2" | S29: 2"
N30: Q | O30: P | P30: Q | Q30: P | R30: Q | S30: P
M31: 2 | N31: 6.14 | O31: 0.71 | P31: 8.58 | Q31: 0.58 | R31: 14.72 | S31: 0.44
C32: Specific heat of cow dung, c1= 2.79925 KJ/Kg0C | M32: 4 | N32: 12.29 | O32: 2.57 | P32: 17.17 | Q32: 2.1 | R32: 29.44 | S32: 1.6
C33: Specific heat of water, c1=4.186 KJ/KgOC | M33: 5 | N33: 15.36 | O33: 3.89 | P33: 21.46 | Q33: 3.17 | R33: 36.81 | S33: 2.41
C34: Average specific heat of manure= (c1+ c2)/2 | M34: 6 | N34: 18.43 | O34: 5.45 | P34: 25.75 | Q34: 4.44 | R34: 44.17 | S34: 3.38
C35: =(2.79925+4.186)/2 -> 3.492625 | M35: 8 | N35: 24.57 | O35: 9.29 | P35: 34.34 | Q35: 7.57 | R35: 58.89 | S35: 5.76
C36: = 3.49 KJ/Kg0C | M36: 10 | N36: 30.71 | O36: 14.04 | P36: 42.92 | Q36: 11.44 | R36: 73.61 | S36: 8.71
C38: See ref downloaded on this day…
I39: Equivalent Length of Pipe (feet) | M39: Pipe size (inches) | N39: 90° Elbow | O39: 45° Elbow | P39: Through T run | Q39: Through T branch
I40: for CPVC SDR 11 (CTS) Pipe Fittings | M40: 0.5 | N40: 1.6 | O40: 0.8 | P40: 1 | Q40: 3.1
M41: 0.75 | N41: 2.1 | O41: 1.1 | P41: 1.4 | Q41: 4.1
M42: 1 | N42: 2.6 | O42: 1.4 | P42: 1.7 | Q42: 5.2
M43: 1.25 | N43: 3.5 | O43: 1.8 | P43: 2.3 | Q43: 6.9
M44: 1.5 | N44: 4 | O44: 2.1 | P44: 2.7 | Q44: 8
M45: 2 | N45: 5.5 | O45: 2.8 | P45: 3.4 | Q45: 10.3
C53: It is assumed that the average temperature for the biomass is 8 °C when entering the process and that it is heated to 37°C (the process temperature). Specific heat is calculated based on the content of DM and water (calculated as 1-DM), assuming that the specific heat for DM corresponds to 3.00 kJ/kg°C and to 4.20 kJ/kg°C for water. As the DM for biomass mixture is 178.57 kg/1000 kg biomass mixture (table F.20), it involves that the water content is 1000kg – 178.57 kg = 821.43 kg/1000 kg biomass mixture. The heat consumption for heating the biomass mixture from 8°C to 37°C is thus : For DM: 178.57 kg DM/1000 kg biomass mixture * 3.00 kJ/kg DM*°C * (37-8) °C = 15 535.59 kJ/1000 kg biomass mixture; For water : 821.43 kg water/1000 kg biomass mixture * 4.20 kJ/kg DM*°C * (37-8) °C = 100 050.17 kJ/1000 kg biomass mixture; Total : (15 535.59 + 100 050.17) kJ/1000 kg biomass mixture * MJ/1000 kJ = 115.59 MJ/1000 kg biomass mixture.

Sheet Methods
A1: Methods
A2: mthd
D3: Ref
D4: =References!D8 -> 2 | E4: Pipes are generally cylindrical in structure; the amount of heat loss through pipe is given by the formula
F6: Q= 2 pi k L(Thot-Tcold)/ln(rOD/rID) | K6: The formula applies for steady state flow, single layer over cylinder and neglecting conductivity convection
E8: where
F9: k | G9: = conductivity of material of which pipe is made
F10: Thot | G10: = temperature of inside layer pipe
F11: Tcold | G11: = temperature outside layer of pipe
F12: L | G12: = length of pipe
F13: rID | G13: = inner radius
F14: rOD | G14: = outer radius
F15: ln | G15: = natural logrithem
F16: pi | G16: =CONCATENATE("= ",PI()) -> = 3.14159265358979
D19: =References!D9 -> 3 | E19: TCBH
E21: where
F22: C | G22: = heat transfer coefficient of the pipe in question, under the stated conditions
F23: t | G23: = temperature of circulating water, in °F
F24: V | G24: = velocity of that water, in feet per hour
F25: D | G25: = inside diameter of the pipe, in feet

Sheet scratch
D3: 0.925 | E3: =retFtInFrac2(D3/12,TRUE,64) -> 59/64" (>)
D4: 0.94 | E4: =retFtInFrac2(D4/12,TRUE,64) -> 15/16" (>)
E10: =cnv__name_BtuFtPerHrPerInSqDegF -> BTU ft hr-1 in-2 °F-1
I11: surface | J11: surf @ .75 | K11: surf @ 1
E12: PVC | F12: =thC_Pvc_kVal_US -> 0.3135276462 | G12: =1/16 -> 0.0625 | H12: =F12/G12 -> 5.01644234 | I12: =$G$21*$G$22*2 -> 2559.6 | L12: =H12*I12 -> 12840.08581 | M12: =L12/$L$14 -> 6.68047652 | N12: =L12/$L$17 -> 2.044997689 | O12: times better than black poly
E13: PVC | F13: =thC_Pvc_kVal_US -> 0.3135276462 | G13: =1/32 -> 0.03125 | H13: 10.03288468 | I13: =$G$21*$G$22*2 -> 2559.6 | L13: =H13*I13 -> 25680.17163 | M13: 13.36095304 | N13: =L13/$L$17 -> 4.089995379 | O13: "
E14: PEX | F14: =thC_Pex_kVal_US -> 0.8604804564 | G14: 0.125 | H14: 6.883843651 | J14: =$J$21 -> 279.2090471 | L14: =H14*J14 -> 1922.031426 | M14: 1
E15: poly | F15: =thC_Pe_kVal_US -> 0.7589608873 | G15: 0.06 | H15: 12.64934812 | J15: =$J$21 -> 279.2090471 | L15: =H15*J15 -> 3531.812435 | M15: 1.837541461
E16: PEX | F16: =thC_Pex_kVal_US -> 0.8604804564 | G16: 0.125 | H16: 6.883843651 | K16: =$K$21 -> 496.3716393 | L16: =K16*H16 -> 3416.944758 | M16: 1.777777778
E17: poly | F17: =thC_Pe_kVal_US -> 0.7589608873 | G17: 0.06 | H17: 12.64934812 | K17: =$K$21 -> 496.3716393 | L17: =K17*H17 -> 6278.777663 | M17: 3.266740376 | O17: black poly
I19: turns | J19: dia | K19: dia
G20: panel | H20: pipe | I20: 20 | J20: 0.75 | K20: 1
E21: wall ht, useful | G21: 40.5 | H21: 40.5 | J21: =PI()*((J20/2)^2)*$G$22*$I$20 -> 279.2090471 | K21: =PI()*((K20/2)^2)*$G$22*$I$20 -> 496.3716393
E22: wall width, useful | G22: 31.6 | H22: 37
E24: PVC cost | G24: =31.5/(4*8) -> 0.984375 | H24: $/sq ft
E25: panel size (incl. 2) | G25: =(G21/12)*(G22/12)*2 -> 17.775 | H25: sq ft
E26: panel cost (incl. 2) | G26: =G25*G24 -> 17.49726562 | J26: panel cost | K26: =$G$26+$G$29+$G$33+($G$34*1) -> 25.26754299
E27: pipe/ft, est | G27: 0.2 | J27: poly cost | K27: =$G$38+($G$39*$I$20) -> 59.25714286
E28: pipe ft | G28: =(33.5/12)*2 -> 5.583333333
E29: pipe cost, est | G29: =G28*G27 -> 1.116666667
E30: sidewall inches needed | G30: =((40+40)*2) - 12 -> 148
E31: sidewall sq ft | G31: =G30*cnv_inSqToFtSq -> 1.027777712
E32: sidewall cost, est | G32: =200/(4*8) -> 6.25 | H32: $/sq ft
E33: sidewalls, price | G33: =G31*G32 -> 6.4236107
E34: elbow | G34: 0.23
E36: 100' black poly | G36: 25
E37: ft needed | G37: =(($H$22-2)/12)*20 -> 58.33333333
E38: poly cost | G38: =(100/G37)*G36 -> 42.85714286
E39: elbows cost | G39: 0.82

Sheet Conversions
A1: Conversions
A2: cnv
B4: Length/Distance
C5: Conversion | D5: cellName | E5: conv# | F5: Units
C6: mm (to mil) | D6: mmToMil | E6: 39.37 | F6: mil
C7: cm (to in) | D7: cmToIn | E7: 0.3937007874 | F7: in
C8: m (to ft) | D8: mToFt | E8: 3.280839895 | F8: ft
C9: km (to mi) | D9: kmToMi | E9: 0.6213711922 | F9: mi
C10: mil (to mm) | D10: milToMm | E10: 0.0254000508 | F10: mm
C11: in (to cm) | D11: inToCm | E11: 2.54 | F11: cm
C12: in (to ft) | D12: inToFt | E12: 0.08333333333 | F12: ft
C13: ft (to yd) | D13: ftToYd | E13: 0.3333333333 | F13: yd
C14: ft (to m) | D14: ftToM | E14: 0.3048 | F14: m
C15: ft (to mi) | D15: ftToMi | E15: 0.0001893939 | F15: mi
C16: mi (to km) | D16: miToKm | E16: 1.609344 | F16: km
B18: Area
C19: Conversion | D19: cellName | E19: conv# | F19: Units
C20: cm2 (to in2) | D20: cmSqToInSq | E20: 0.15500031 | F20: in2
C21: m2 (to ft2) | D21: mSqToFtSq | E21: 10.76391042 | F21: ft2
C22: m2 (to ha) | D22: mSqToHa | E22: 0.0001 | F22: ha
C23: km2 (to ha) | D23: kmSqToHa | E23: 100 | F23: ha
C24: km2 (to acre) | D24: kmSqToAcre | E24: 247.1053815 | F24: acre
C25: km2 (to mi2) | D25: kmSqToMiSq | E25: 0.386102158 | F25: mi2
C26: ha (to acre) | D26: haToAcre | E26: 2.471053816 | F26: acre
C27: ha (to ft2) | D27: haToFtSq | E27: 107639.1042 | F27: ft2
C28: in2 (to cm2) | D28: inSqToCmSq | E28: 6.4516 | F28: cm2
C29: in2 (to ft2) | D29: inSqToFtSq | E29: 0.006944444 | F29: ft2
C30: ft2 (to in2) | D30: ftSqToInSq | E30: 144 | F30: in2
C31: ft2 (to m2) | D31: ftSqToMSq | E31: 0.09290304 | F31: m2
C32: ft2 (to yd2) | D32: ftSqToYdSq | E32: 0.1111111 | F32: yd2
C33: ft2 (to mi2) | D33: ftSqToMiSq | E33: 3.587006428e-08 | F33: mi2
C34: ft2 (to acre) | D34: ftSqToAcre | E34: 2.295684114e-05 | F34: acre
C35: ft2 (to ha) | D35: ftSqToHa | E35: 9.290304e-06 | F35: ha
C36: mi2 (to ft2) | D36: miSqToFtSq | E36: 27878400 | F36: ft2
C37: mi2 (to km2) | D37: miSqToKmSq | E37: 2.58998811 | F37: km2
C38: acre (to ft2) | D38: acreToFtSq | E38: 43560 | F38: ft2
C39: acre (to ha) | D39: acreToHa | E39: 0.404685642 | F39: ha
C40: acre (to km2) | D40: acreToKmSq | E40: 0.004046856 | F40: km2
C41: acre (to mi2) | D41: acreToMiSq | E41: 0.0015625 | F41: mi2
B43: Mass
C44: Conversion | D44: cellName | E44: conv# | F44: Units
C45: gm (to oz) | D45: gmToOz | E45: 0.03527396195 | F45: oz
C46: gm (to lb) | D46: gmToLb | E46: 0.002204622622 | F46: lb
C47: kg (to oz) | D47: kgToOz | E47: 35.27396195 | F47: oz
C48: kg (to lb) | D48: kgToLb | E48: 2.204622622 | F48: lb
C49: kg (to slug) | D49: kgToSlug | E49: 14.59390294 | F49: slug
C50: kg (to ton) | D50: kgToTon | E50: 0.001102311311 | F50: ton
C51: tonne (to lb) | D51: tonneToLb | E51: 2204.622622 | F51: lb
C52: tonne (to ton) | D52: tonneToTon | E52: 1.102311311 | F52: ton
C53: oz (to gm) | D53: ozToGm | E53: 28.34952313 | F53: gm
C54: oz (to lb) | D54: ozToLb | E54: 0.0625 | F54: lb
C55: oz (to kg) | D55: ozToKg | E55: 0.02834952313 | F55: kg
C56: lb (to gm) | D56: lbToGm | E56: 453.59237 | F56: gm
C57: lb (to oz) | D57: lbToOz | E57: 16 | F57: oz
C58: lb (to kg) | D58: lbToKg | E58: 0.45359237 | F58: kg
C59: lb (to slug) | D59: lbToSlug | E59: 0.03108095017 | F59: slug
C60: lb (to ton) | D60: lbToTon | E60: 0.0005 | F60: ton
C61: lb (to tonne) | D61: lbToTonne | E61: 0.00045359237 | F61: tonne
C62: slug (to kg) | D62: slugToKg | E62: 0.06852176586 | F62: kg
C63: slug (to lb) | D63: slugToLb | E63: 32.17404856 | F63: lb
C64: ton (to lb) | D64: tonToLb | E64: 2000 | F64: lb
C65: ton (to kg) | D65: tonToKg | E65: 907.1847 | F65: kg
C66: ton (to tonne) | D66: tonToTonne | E66: 0.90718474 | F66: tonne
B68: Volume
C69: Conversion | D69: cellName | E69: conv# | F69: Units
C70: cm3 (to ml) | D70: cmCuToMl | E70: 1 | F70: ml
C71: cm3 (to m3) | D71: cmCuToMCu | E71: 1e-06 | F71: m3
C72: cm3 (to in3) | D72: cmCuToInCu | E72: 0.06102374409 | F72: in3
C73: cm3 (to fl oz) | D73: cmCuToFlOz | E73: 0.0338140227 | F73: fl oz
C74: l (to m3) | D74: lToMCu | E74: 0.001 | F74: m3
C75: l (to in3) | D75: lToInCu | E75: 61.02374409 | F75: in3
C76: l (to fl oz) | D76: lToFlOz | E76: 33.8140227 | F76: fl oz
C77: l (to ft3) | D77: lToFtCu | E77: 0.03531466672 | F77: ft3
C78: m3 (to cm3) | D78: mCuToCmCu | E78: 1000000 | F78: cm3
C79: m3 (to in3) | D79: mCuToInCu | E79: 61023.74409 | F79: in3
C80: m3 (to ft3) | D80: mCuToFtCu | E80: 35.31466672 | F80: ft3
C81: m3 (to gal) | D81: mCuToGal | E81: 264.1720524 | F81: gal
C82: m3 (to yd3) | D82: mCuToYdCu | E82: 1.307950619 | F82: yd3
C83: in3 (to cm3) | D83: inCuToCmCu | E83: 16.387064 | F83: cm3
C84: in3 (to fl oz) | D84: inCuToFlOz | E84: 0.5541125541 | F84: fl oz
C85: in3 (to ft3) | D85: inCuToFtCu | E85: 0.0005787037037 | F85: ft3
C86: in3 (to gal) | D86: inCuToGal | E86: 0.004329004329 | F86: gal
C87: fl oz (to cm3) | D87: flOzToCmCu | E87: 29.57352956 | F87: cm3
C88: fl oz (to in3) | D88: flOzToInCu | E88: 1.8046875 | F88: in3
C89: fl oz (to ft3) | D89: flOzToFtCu | E89: 0.001044379 | F89: ft3
C90: fl oz (to gal) | D90: flOzToGal | E90: 0.0078125 | F90: gal
C91: ft3 (to cm3) | D91: ftCuToCmCu | E91: 28316.84659 | F91: cm3
C92: ft3 (to l) | D92: ftCuToL | E92: 28.31684659 | F92: l
C93: ft3 (to m3) | D93: ftCuToMCu | E93: 0.028316847 | F93: m3
C94: ft3 (to in3) | D94: ftCuToInCu | E94: 1728 | F94: in3
C95: ft3 (to gal) | D95: ftCuToGal | E95: 7.480519481 | F95: gal
C96: ft3 (to bu) | D96: ftCuToBu | E96: 0.8035639549 | F96: bu
C97: ft3 (to yd3) | D97: ftCuToYdCu | E97: 0.03703704 | F97: yd3
C98: ft3 (to l) | D98: ftCuToL | E98: 28.31685 | F98: l
C99: ft3 (to m3) | D99: ftCuToMCu | E99: 0.02831685 | F99: m3
C100: gal (to fl oz) | D100: galToFlOz | E100: 128 | F100: fl oz
C101: gal (to l) | D101: galToL | E101: 0.2641720524 | F101: l
C102: gal (to ft3) | D102: galToFtCu | E102: 0.1336805556 | F102: ft3
C103: gal (to m3) | D103: galToMCu | E103: 0.003785411784 | F103: m3
C104: yd3 (to ft3) | D104: ydCuToftCu | E104: 26.99999784 | F104: ft3
B106: Energy units
C107: Conversion | D107: cellName | E107: conv# | F107: Units
C108: kCal (to BTU) | D108: kCalToBtu | E108: 3.968320541 | F108: BTU
C109: kCal (to joules) | D109: kCalToJoules | E109: 4186.8 | F109: joules
C110: joules (to kCal) | D110: joulesToKcal | E110: 0.0002388458966 | F110: kCal
C111: joules (to KwH) | D111: joulesToKwh | E111: 2.777778e-07 | F111: KwH
C112: joules (to BTU) | D112: joulesToBtu | E112: 0.0009478171 | F112: BTU
C113: joules (to therm) | D113: joulesToTherm | E113: 9.478134e-09 | F113: therm
C114: kCal (to Kwh) | D114: kCalToKwh | E114: 0.001163 | F114: Kwh
C115: kCal (to therm) | D115: kCalToTherm | E115: 3.969268224e-05 | F115: therm
C116: BTU (to kCal) | D116: btuToKcal | E116: 0.2519957724 | F116: kCal
C117: BTU (to Kwh) | D117: btuToKwh | E117: 0.0002930710833 | F117: Kwh
C118: BTU (to therm) | D118: btuToTherm | E118: 1.000238812e-05 | F118: therm
C119: Kwh (to kCal) | D119: kwhToKcal | E119: 859.8452279 | F119: kCal
C120: Kwh (to BTU) | D120: kwhToBtu | E120: 3412.14148 | F120: BTU
C121: Kwh (to therm) | D121: kwhToTherm | E121: 0.03412128 | F121: therm
C122: therm (to kCal) | D122: thermToKcal | E122: 25193.56071 | F122: kCal
C123: therm (to BTU) | D123: thermToBtu | E123: 99976.12449 | F123: BTU
C124: therm (to Kwh) | D124: thermToKwh | E124: 29.30011111 | F124: Kwh
B126: Power
C127: Conversion | D127: cellName | E127: conv# | F127: Units
C128: kW (to kCal/sec) | D128: kWToKcalPerSec | E128: 0.2388458966 | F128: kCal/sec
C129: kW (to BTU/sec) | D129: kWToBtuPerSec | E129: 0.9478171209 | F129: BTU/sec
C130: kW (to HP) | D130: kWToHp | E130: 1.341022092 | F130: HP
C131: kCal/sec (to kW) | D131: kCalPerSecToKw | E131: 4.1868 | F131: kW
C132: kCal/sec (to HP) | D132: kCalPerSecToHp | E132: 5.614591297 | F132: HP
C133: BTU/sec (to kW) | D133: btuPerSecToKw | E133: 1.055055852 | F133: kW
C134: BTU/sec (to HP) | D134: btuPerSecToHp | E134: 1.414853206 | F134: HP
C135: HP (to kW) | D135: hpToKw | E135: 0.74569987 | F135: kW
C136: HP (to kCal/sec) | D136: hpToKcalPerSec | E136: 0.1781073541 | F136: kCal/sec
C137: HP (to BTU/sec) | D137: hpToBtuPerSec | E137: 0.7067871038 | F137: BTU/sec
B139: Acceleration
C140: Conversion | D140: cellName | E140: conv# | F140: Units
C141: m sec-2 (to ft sec-2) | D141: mPerSecSqToFtPerSecSq | E141: 0 | F141: ft sec-2
C142: ft sec-2 (to m sec-2) | D142: ftPerSecSqToMPerSecSq | E142: 0 | F142: m sec-2
B144: Energy Density (chk*)
C145: Conversion | D145: cellName | E145: conv# | F145: Units
C146: cal l-1 (to kCal m-3) | D146: calPerLToKcalPerMCu | E146: 0.001 | F146: kCal m-3
C147: cal l-1 (to joules m-3) | D147: calPerLToJoulesPerMCu | E147: 4184 | F147: joules m-3
C148: kCal l-1 (to joules m-3) | D148: kCalPerLToJoulesPerMCu | E148: 4184000 | F148: joules m-3
C149: kCal l-1 (to BTU ft-3) | D149: kCalPerLToBtuPerFtCu | E149: 112.2951793 | F149: BTU ft-3
C150: kCal l-1 (to BTU gal-1) | D150: kCalPerLToBtuPerGal | E150: 15.01168195 | F150: BTU gal-1
C151: kCal m-3 (to BTU ft-3) | D151: kCalPerMCuToBtuPerFtCu | E151: 0.1122951793 | F151: BTU ft-3
C152: kCal m-3 (to BTU gal-1) | D152: kCalPerMCuToBtuPerGal | E152: 0.01501168195 | F152: BTU gal-1
C153: joules l-1 (to kCal m-3) | D153: joulesPerLToKcalPerMCu | E153: 0.239005736 | F153: kCal m-3
C154: joules l-1 (to BTU ft-3) | D154: joulesPerLToBtuPerFtCu | E154: 0.02685715995 | F154: BTU ft-3
C155: joules l-1 (to BTU gal-1) | D155: joulesPerLToBtuPerGal | E155: 0.003587877372 | F155: BTU gal-1
C156: joules l-1 (to therm ft-3) | D156: joulesPerLToThermPerFtCu | E156: 3.347171434e-10 | F156: therm ft-3
C157: BTU ft-3 (to kCal l-1) | D157: btuPerFtCuToKcalPerL | E157: 0.00890510177 | F157: kCal l-1
C158: BTU ft-3 (to kCal m-3) | D158: btuPerFtCuToKcalPerMCu | E158: 8.90510177 | F158: kCal m-3
C159: BTU ft-3 (to joules m-3) | D159: btuPerFtCuToJoulesPerMCu | E159: 37258.94581 | F159: joules m-3
C160: therm ft-3 (to kCal m-3) | D160: thermPerFtCuToKcalPerMCu | E160: 889702.2002 | F160: kCal m-3
C161: therm ft-3 (to joules m-3) | D161: thermPerFtCuToJoulesPerMCu | E161: 3725005172 | F161: joules m-3
C162: therm ft-3 (to BTU gal-1) | D162: thermPerFtCuToBtuPerGal | E162: 13368.05556 | F162: BTU gal-1
B164: Density
C165: Conversion | D165: cellName | E165: conv# | F165: Units
C166: gm/cm3 (to kg/m3) | D166: gmPerCmCuToKgPerMCu | E166: 1000 | F166: kg/m3
C167: kg/l (to lb/ft3) | D167: kgPerLToLbPerFtCu | E167: 62.42796058 | F167: lb/ft3
C168: kg/m3 (to lb/in3) | D168: kgPerMCuToLbPerInCu | E168: 3.6127292e-05 | F168: lb/in3
C169: kg/m3 (to lb/ft3) | D169: kgPerMCuToLbPerftCu | E169: 0.06242796058 | F169: lb/ft3
C170: kg/m3 (to lb/gal) | D170: kgPerMCuToLbPerGal | E170: 0.008345404452 | F170: lb/gal
C171: kg/m3 (to SpGrav (specific gravity)) | D171: kgPerMCuToSpGrav | E171: 0.001 | F171: SpGrav (specific gravity)
C172: lb/ft3 (to kg/m3) | D172: lbPerInCuToKgPerMCu | E172: 16.01846337 | F172: kg/m3
C173: lb/ft3 (to oz/in3) | D173: lbPerFtCuToOzPerInCu | E173: 0.009259259259 | F173: oz/in3
C174: lb/ft3 (to SpGrav) | D174: lbPerFtCuToSpGrav | E174: 62.42718356 | F174: SpGrav
C175: SpGrav (to gm/cm3) | D175: spGravToGmPerCmCu | E175: 1 | F175: gm/cm3
C176: SpGrav (to kg/m3) | D176: spGravToKgPerMCu | E176: 1000 | F176: kg/m3
C177: SpGrav (to oz/in3) | D177: spGravToOzPerInCu | E177: 0.5780294774 | F177: oz/in3
C178: SpGrav (to lb/ft3) | D178: spGravToLbPerFtCu | E178: 0.01601866275 | F178: lb/ft3
C179: SpGrav (to lb/gal) | D179: spGravToLbPerGal | E179: 8.34530058 | F179: lb/gal
B181: Pressure
C182: Conversion | D182: cellName | E182: conv# | F182: Units
C183: atm (to bar) | D183: atmToBar | E183: 1.01325 | F183: bar
C184: atm (to mm Hg) | D184: atmToMmHg | E184: 760.0021002 | F184: mm Hg
C185: atm (to cm H2O) | D185: atmToCmH2o | E185: 1033.227555 | F185: cm H2O
C186: atm (to cm H2O) | D186: atmToFtH2o | E186: 33.89854205 | F186: cm H2O
C187: atm (to MPascal) | D187: atmToMpascal | E187: 0.10132501 | F187: MPascal
C188: atm (to psi) | D188: atmToPsi | E188: 14.69595025 | F188: psi
C189: bar (to atm) | D189: barToAtm | E189: 0.9869232667 | F189: atm
C190: bar (to mm Hg) | D190: barToMmHg | E190: 750.0637554 | F190: mm Hg
C191: bar (to cm H2O) | D191: barToCmH2o | E191: 1019.716213 | F191: cm H2O
C192: bar (to psi) | D192: barToPsi | E192: 14.50377377 | F192: psi
C193: MPascal (to atm) | D193: mPascalToAtm | E193: 9.869231693 | F193: atm
C194: MPascal (to psi) | D194: mPascalToPsi | E194: 145.0377377 | F194: psi
C195: mm Hg (to atm) | D195: mmHgToAtm | E195: 0.001315785838 | F195: atm
C196: mm Hg (to cm H2O) | D196: mmHgToCmH2o | E196: 1.359506047 | F196: cm H2O
C197: cm H2O (to atm) | D197: cmH2oToAtm | E197: 0.0009678410098 | F197: atm
C198: cm H2O (to bar) | D198: cmH2oToBar | E198: 0.000980665 | F198: bar
C199: psi (to atm) | D199: psiToAtm | E199: 0.06804595706 | F199: atm
C200: psi (to bar) | D200: psiToBar | E200: 0.0689475728 | F200: bar
C201: bar (to mm Hg) | D201: barToMmHg | E201: 51.7149241 | F201: mm Hg
C202: psi (to cm H2O) | D202: psiToCmH2o | E202: 70.30695783 | F202: cm H2O
C203: psi (to MPascal) | D203: psiToMpascal | E203: 0.006894757293 | F203: MPascal
B205: Heat Transfer Coefficient / Thermal Conductivity
C206: Conversion | D206: cellName | E206: conv# | F206: Units
C207: cal cm sec-1 cm-2 °C-1 (to W m-1 °C-1) | D207: calCmPerSecCmSqDegCToWPerMDegC | E207: 0.002390057361 | F207: W m-1 °C-1
C208: W m-1 °C-1 (to W cm-1 °C-1) | D208: wPerMDegCToWPerCmDegC | E208: 100 | F208: W cm-1 °C-1
C209: W m-1 °C-1 (to cal cm sec-1 cm-2 °C-1) | D209: wPerMDegCToCalCmPerSecCmSqDegC | E209: 418.4 | F209: cal cm sec-1 cm-2 °C-1
C210: W m-1 °C-1 (to BTU ft hr-1 ft-2 °F-1) | D210: wPerMDegCToBtuFtPerHrPerFtSqDegF | E210: 1.730734666 | F210: BTU ft hr-1 ft-2 °F-1 | H210: cnv__name_
C211: W m-1 °C-1 (to BTU ft hr-1 in-2 °F-1) | D211: wPerMDegCToBtuFtPerHrPerInSqDegF | E211: 0.1442278889 | F211: BTU ft hr-1 in-2 °F-1
... 39 more rows
